{"text_format":"1","workbook":"xlsx","n_sheets":7,"sheets":["Catégories","Base","BENJAMIN FILLES","BENJAMIN GARCONS","MINIME FILLES","MINIME GARCONS","DEBUTANT"],"not_rendered":{"charts":0,"images":0,"macros":1,"external_links":0,"defined_names":18,"comments":0,"pivot_tables":0},"unopened":[],"bounds":{"document_bytes":16777216,"sheet_cells":100000,"rows_first":2000,"rows_last":500,"rows_between":2000,"halvings":0,"cell_chars":16384,"cell_head_chars":4096},"cells_cut":0,"cells_raw":0,"read":"whole","date_system":"1900"}

{"sheet":"Catégories","index":0,"n_rows":7,"n_cols":4,"rows_kept":7,"cut":false,"hidden":false,"merged":[]}
[]
[]
[null,1.1000000000000001,"BENJAMIN FILLES",8]
[null,1.2,"BENJAMIN GARCONS",8]
[null,2.1,"MINIME FILLES",10]
[null,2.2000000000000002,"MINIME GARCONS",10]
[null,3.1,"DEBUTANT",8]

{"sheet":"Base","index":1,"n_rows":231,"n_cols":21,"rows_kept":231,"cut":false,"hidden":false,"merged":[[9,12,9,14],[9,15,9,17],[9,10,9,11],[8,3,8,9],[8,10,8,13],[8,14,8,19]]}
[]
[]
[]
[]
[]
[]
[]
[]
[null,null,null,"Course d'Orientation",null,null,null,null,null,null,"CLASSEMENT :",null,null,null,"Course Open"]
[null,null,null,"N°équipe","Nom1","Prénom1","Établissement 1","Nom2","Prénom2","Établissement 2","Catégorie",null,"Tps de départ",null,null,"Tps d'arrivée",null,null,"Tps de parcours","Nb balises","Vérif balise"]
[null,null,null,null,null,null,null,null,null,null,null,{"$f":"IFERROR(VLOOKUP(K11,Catégories!$B$3:$D$7,2,FALSE),\"\")","v":""},null,null,null,null,null,null,{"$f":"transforme_seconde((P11-M11)*3600+(Q11-N11)*60+(R11-O11))","v":"0h00min00s"},null,{"$f":"IFERROR(IF(T11>VLOOKUP(K11,Catégories!$B$3:$D$7,3,FALSE),\"Attention\",\"OK\"),\"\")","v":""}]
[null,null,null,null,null,null,null,null,null,null,null,{"$f":"IFERROR(VLOOKUP(K12,Catégories!$B$3:$D$7,2,FALSE),\"\")","v":""},null,null,null,null,null,null,"0h00min00s",null,{"$f":"IFERROR(IF(T12>VLOOKUP(K12,Catégories!$B$3:$D$7,3,FALSE),\"Attention\",\"OK\"),\"\")","v":""}]
[null,null,null,null,null,null,null,null,null,null,null,{"$f":"IFERROR(VLOOKUP(K13,Catégories!$B$3:$D$7,2,FALSE),\"\")","v":""},null,null,null,null,null,null,"0h00min00s",null,{"$f":"IFERROR(IF(T13>VLOOKUP(K13,Catégories!$B$3:$D$7,3,FALSE),\"Attention\",\"OK\"),\"\")","v":""}]
[null,null,null,null,null,null,null,null,null,null,null,{"$f":"IFERROR(VLOOKUP(K14,Catégories!$B$3:$D$7,2,FALSE),\"\")","v":""},null,null,null,null,null,null,"0h00min00s",null,{"$f":"IFERROR(IF(T14>VLOOKUP(K14,Catégories!$B$3:$D$7,3,FALSE),\"Attention\",\"OK\"),\"\")","v":""}]
[null,null,null,null,null,null,null,null,null,null,null,{"$f":"IFERROR(VLOOKUP(K15,Catégories!$B$3:$D$7,2,FALSE),\"\")","v":""},null,null,null,null,null,null,"0h00min00s",null,{"$f":"IFERROR(IF(T15>VLOOKUP(K15,Catégories!$B$3:$D$7,3,FALSE),\"Attention\",\"OK\"),\"\")","v":""}]
[null,null,null,null,null,null,null,null,null,null,null,{"$f":"IFERROR(VLOOKUP(K16,Catégories!$B$3:$D$7,2,FALSE),\"\")","v":""},null,null,null,null,null,null,"0h00min00s",null,{"$f":"IFERROR(IF(T16>VLOOKUP(K16,Catégories!$B$3:$D$7,3,FALSE),\"Attention\",\"OK\"),\"\")","v":""}]
[null,null,null,null,null,null,null,null,null,null,null,{"$f":"IFERROR(VLOOKUP(K17,Catégories!$B$3:$D$7,2,FALSE),\"\")","v":""},null,null,null,null,null,null,"0h00min00s",null,{"$f":"IFERROR(IF(T17>VLOOKUP(K17,Catégories!$B$3:$D$7,3,FALSE),\"Attention\",\"OK\"),\"\")","v":""}]
[null,null,null,null,null,null,null,null,null,null,null,{"$f":"IFERROR(VLOOKUP(K18,Catégories!$B$3:$D$7,2,FALSE),\"\")","v":""},null,null,null,null,null,null,"0h00min00s",null,{"$f":"IFERROR(IF(T18>VLOOKUP(K18,Catégories!$B$3:$D$7,3,FALSE),\"Attention\",\"OK\"),\"\")","v":""}]
[null,null,null,null,null,null,null,null,null,null,null,{"$f":"IFERROR(VLOOKUP(K19,Catégories!$B$3:$D$7,2,FALSE),\"\")","v":""},null,null,null,null,null,null,"0h00min00s",null,{"$f":"IFERROR(IF(T19>VLOOKUP(K19,Catégories!$B$3:$D$7,3,FALSE),\"Attention\",\"OK\"),\"\")","v":""}]
[null,null,null,null,null,null,null,null,null,null,null,{"$f":"IFERROR(VLOOKUP(K20,Catégories!$B$3:$D$7,2,FALSE),\"\")","v":""},null,null,null,null,null,null,"0h00min00s",null,{"$f":"IFERROR(IF(T20>VLOOKUP(K20,Catégories!$B$3:$D$7,3,FALSE),\"Attention\",\"OK\"),\"\")","v":""}]
[null,null,null,null,null,null,null,null,null,null,null,{"$f":"IFERROR(VLOOKUP(K21,Catégories!$B$3:$D$7,2,FALSE),\"\")","v":""},null,null,null,null,null,null,"0h00min00s",null,{"$f":"IFERROR(IF(T21>VLOOKUP(K21,Catégories!$B$3:$D$7,3,FALSE),\"Attention\",\"OK\"),\"\")","v":""}]
[null,null,null,null,null,null,null,null,null,null,null,{"$f":"IFERROR(VLOOKUP(K22,Catégories!$B$3:$D$7,2,FALSE),\"\")","v":""},null,null,null,null,null,null,"0h00min00s",null,{"$f":"IFERROR(IF(T22>VLOOKUP(K22,Catégories!$B$3:$D$7,3,FALSE),\"Attention\",\"OK\"),\"\")","v":""}]
[null,null,null,null,null,null,null,null,null,null,null,{"$f":"IFERROR(VLOOKUP(K23,Catégories!$B$3:$D$7,2,FALSE),\"\")","v":""},null,null,null,null,null,null,"0h00min00s",null,{"$f":"IFERROR(IF(T23>VLOOKUP(K23,Catégories!$B$3:$D$7,3,FALSE),\"Attention\",\"OK\"),\"\")","v":""}]
[null,null,null,null,null,null,null,null,null,null,null,{"$f":"IFERROR(VLOOKUP(K24,Catégories!$B$3:$D$7,2,FALSE),\"\")","v":""},null,null,null,null,null,null,"0h00min00s",null,{"$f":"IFERROR(IF(T24>VLOOKUP(K24,Catégories!$B$3:$D$7,3,FALSE),\"Attention\",\"OK\"),\"\")","v":""}]
[null,null,null,null,null,null,null,null,null,null,null,{"$f":"IFERROR(VLOOKUP(K25,Catégories!$B$3:$D$7,2,FALSE),\"\")","v":""},null,null,null,null,null,null,"0h00min00s",null,{"$f":"IFERROR(IF(T25>VLOOKUP(K25,Catégories!$B$3:$D$7,3,FALSE),\"Attention\",\"OK\"),\"\")","v":""}]
[null,null,null,null,null,null,null,null,null,null,null,{"$f":"IFERROR(VLOOKUP(K26,Catégories!$B$3:$D$7,2,FALSE),\"\")","v":""},null,null,null,null,null,null,"0h00min00s",null,{"$f":"IFERROR(IF(T26>VLOOKUP(K26,Catégories!$B$3:$D$7,3,FALSE),\"Attention\",\"OK\"),\"\")","v":""}]
[null,null,null,null,null,null,null,null,null,null,null,{"$f":"IFERROR(VLOOKUP(K27,Catégories!$B$3:$D$7,2,FALSE),\"\")","v":""},null,null,null,null,null,null,"0h00min00s",null,{"$f":"IFERROR(IF(T27>VLOOKUP(K27,Catégories!$B$3:$D$7,3,FALSE),\"Attention\",\"OK\"),\"\")","v":""}]
[null,null,null,null,null,null,null,null,null,null,null,{"$f":"IFERROR(VLOOKUP(K28,Catégories!$B$3:$D$7,2,FALSE),\"\")","v":""},null,null,null,null,null,null,"0h00min00s",null,{"$f":"IFERROR(IF(T28>VLOOKUP(K28,Catégories!$B$3:$D$7,3,FALSE),\"Attention\",\"OK\"),\"\")","v":""}]
[null,null,null,null,null,null,null,null,null,null,null,{"$f":"IFERROR(VLOOKUP(K29,Catégories!$B$3:$D$7,2,FALSE),\"\")","v":""},null,null,null,null,null,null,"0h00min00s",null,{"$f":"IFERROR(IF(T29>VLOOKUP(K29,Catégories!$B$3:$D$7,3,FALSE),\"Attention\",\"OK\"),\"\")","v":""}]
[null,null,null,null,null,null,null,null,null,null,null,{"$f":"IFERROR(VLOOKUP(K30,Catégories!$B$3:$D$7,2,FALSE),\"\")","v":""},null,null,null,null,null,null,"0h00min00s",null,{"$f":"IFERROR(IF(T30>VLOOKUP(K30,Catégories!$B$3:$D$7,3,FALSE),\"Attention\",\"OK\"),\"\")","v":""}]
[null,null,null,null,null,null,null,null,null,null,null,{"$f":"IFERROR(VLOOKUP(K31,Catégories!$B$3:$D$7,2,FALSE),\"\")","v":""},null,null,null,null,null,null,"0h00min00s",null,{"$f":"IFERROR(IF(T31>VLOOKUP(K31,Catégories!$B$3:$D$7,3,FALSE),\"Attention\",\"OK\"),\"\")","v":""}]
[null,null,null,null,null,null,null,null,null,null,null,{"$f":"IFERROR(VLOOKUP(K32,Catégories!$B$3:$D$7,2,FALSE),\"\")","v":""},null,null,null,null,null,null,"0h00min00s",null,{"$f":"IFERROR(IF(T32>VLOOKUP(K32,Catégories!$B$3:$D$7,3,FALSE),\"Attention\",\"OK\"),\"\")","v":""}]
[null,null,null,null,null,null,null,null,null,null,null,{"$f":"IFERROR(VLOOKUP(K33,Catégories!$B$3:$D$7,2,FALSE),\"\")","v":""},null,null,null,null,null,null,"0h00min00s",null,{"$f":"IFERROR(IF(T33>VLOOKUP(K33,Catégories!$B$3:$D$7,3,FALSE),\"Attention\",\"OK\"),\"\")","v":""}]
[null,null,null,null,null,null,null,null,null,null,null,{"$f":"IFERROR(VLOOKUP(K34,Catégories!$B$3:$D$7,2,FALSE),\"\")","v":""},null,null,null,null,null,null,"0h00min00s",null,{"$f":"IFERROR(IF(T34>VLOOKUP(K34,Catégories!$B$3:$D$7,3,FALSE),\"Attention\",\"OK\"),\"\")","v":""}]
[null,null,null,null,null,null,null,null,null,null,null,{"$f":"IFERROR(VLOOKUP(K35,Catégories!$B$3:$D$7,2,FALSE),\"\")","v":""},null,null,null,null,null,null,"0h00min00s",null,{"$f":"IFERROR(IF(T35>VLOOKUP(K35,Catégories!$B$3:$D$7,3,FALSE),\"Attention\",\"OK\"),\"\")","v":""}]
[null,null,null,null,null,null,null,null,null,null,null,{"$f":"IFERROR(VLOOKUP(K36,Catégories!$B$3:$D$7,2,FALSE),\"\")","v":""},null,null,null,null,null,null,"0h00min00s",null,{"$f":"IFERROR(IF(T36>VLOOKUP(K36,Catégories!$B$3:$D$7,3,FALSE),\"Attention\",\"OK\"),\"\")","v":""}]
[null,null,null,null,null,null,null,null,null,null,null,{"$f":"IFERROR(VLOOKUP(K37,Catégories!$B$3:$D$7,2,FALSE),\"\")","v":""},null,null,null,null,null,null,"0h00min00s",null,{"$f":"IFERROR(IF(T37>VLOOKUP(K37,Catégories!$B$3:$D$7,3,FALSE),\"Attention\",\"OK\"),\"\")","v":""}]
[null,null,null,null,null,null,null,null,null,null,null,{"$f":"IFERROR(VLOOKUP(K38,Catégories!$B$3:$D$7,2,FALSE),\"\")","v":""},null,null,null,null,null,null,"0h00min00s",null,{"$f":"IFERROR(IF(T38>VLOOKUP(K38,Catégories!$B$3:$D$7,3,FALSE),\"Attention\",\"OK\"),\"\")","v":""}]
[null,null,null,null,null,null,null,null,null,null,null,{"$f":"IFERROR(VLOOKUP(K39,Catégories!$B$3:$D$7,2,FALSE),\"\")","v":""},null,null,null,null,null,null,"0h00min00s",null,{"$f":"IFERROR(IF(T39>VLOOKUP(K39,Catégories!$B$3:$D$7,3,FALSE),\"Attention\",\"OK\"),\"\")","v":""}]
[null,null,null,null,null,null,null,null,null,null,null,{"$f":"IFERROR(VLOOKUP(K40,Catégories!$B$3:$D$7,2,FALSE),\"\")","v":""},null,null,null,null,null,null,"0h00min00s",null,{"$f":"IFERROR(IF(T40>VLOOKUP(K40,Catégories!$B$3:$D$7,3,FALSE),\"Attention\",\"OK\"),\"\")","v":""}]
[null,null,null,null,null,null,null,null,null,null,null,{"$f":"IFERROR(VLOOKUP(K41,Catégories!$B$3:$D$7,2,FALSE),\"\")","v":""},null,null,null,null,null,null,"0h00min00s",null,{"$f":"IFERROR(IF(T41>VLOOKUP(K41,Catégories!$B$3:$D$7,3,FALSE),\"Attention\",\"OK\"),\"\")","v":""}]
[null,null,null,null,null,null,null,null,null,null,null,{"$f":"IFERROR(VLOOKUP(K42,Catégories!$B$3:$D$7,2,FALSE),\"\")","v":""},null,null,null,null,null,null,"0h00min00s",null,{"$f":"IFERROR(IF(T42>VLOOKUP(K42,Catégories!$B$3:$D$7,3,FALSE),\"Attention\",\"OK\"),\"\")","v":""}]
[null,null,null,null,null,null,null,null,null,null,null,{"$f":"IFERROR(VLOOKUP(K43,Catégories!$B$3:$D$7,2,FALSE),\"\")","v":""},null,null,null,null,null,null,"0h00min00s",null,{"$f":"IFERROR(IF(T43>VLOOKUP(K43,Catégories!$B$3:$D$7,3,FALSE),\"Attention\",\"OK\"),\"\")","v":""}]
[null,null,null,null,null,null,null,null,null,null,null,{"$f":"IFERROR(VLOOKUP(K44,Catégories!$B$3:$D$7,2,FALSE),\"\")","v":""},null,null,null,null,null,null,"0h00min00s",null,{"$f":"IFERROR(IF(T44>VLOOKUP(K44,Catégories!$B$3:$D$7,3,FALSE),\"Attention\",\"OK\"),\"\")","v":""}]
[null,null,null,null,null,null,null,null,null,null,null,{"$f":"IFERROR(VLOOKUP(K45,Catégories!$B$3:$D$7,2,FALSE),\"\")","v":""},null,null,null,null,null,null,"0h00min00s",null,{"$f":"IFERROR(IF(T45>VLOOKUP(K45,Catégories!$B$3:$D$7,3,FALSE),\"Attention\",\"OK\"),\"\")","v":""}]
[null,null,null,null,null,null,null,null,null,null,null,{"$f":"IFERROR(VLOOKUP(K46,Catégories!$B$3:$D$7,2,FALSE),\"\")","v":""},null,null,null,null,null,null,"0h00min00s",null,{"$f":"IFERROR(IF(T46>VLOOKUP(K46,Catégories!$B$3:$D$7,3,FALSE),\"Attention\",\"OK\"),\"\")","v":""}]
[null,null,null,null,null,null,null,null,null,null,null,{"$f":"IFERROR(VLOOKUP(K47,Catégories!$B$3:$D$7,2,FALSE),\"\")","v":""},null,null,null,null,null,null,"0h00min00s",null,{"$f":"IFERROR(IF(T47>VLOOKUP(K47,Catégories!$B$3:$D$7,3,FALSE),\"Attention\",\"OK\"),\"\")","v":""}]
[null,null,null,null,null,null,null,null,null,null,null,{"$f":"IFERROR(VLOOKUP(K48,Catégories!$B$3:$D$7,2,FALSE),\"\")","v":""},null,null,null,null,null,null,"0h00min00s",null,{"$f":"IFERROR(IF(T48>VLOOKUP(K48,Catégories!$B$3:$D$7,3,FALSE),\"Attention\",\"OK\"),\"\")","v":""}]
[null,null,null,null,null,null,null,null,null,null,null,{"$f":"IFERROR(VLOOKUP(K49,Catégories!$B$3:$D$7,2,FALSE),\"\")","v":""},null,null,null,null,null,null,"0h00min00s",null,{"$f":"IFERROR(IF(T49>VLOOKUP(K49,Catégories!$B$3:$D$7,3,FALSE),\"Attention\",\"OK\"),\"\")","v":""}]
[null,null,null,null,null,null,null,null,null,null,null,{"$f":"IFERROR(VLOOKUP(K50,Catégories!$B$3:$D$7,2,FALSE),\"\")","v":""},null,null,null,null,null,null,"0h00min00s",null,{"$f":"IFERROR(IF(T50>VLOOKUP(K50,Catégories!$B$3:$D$7,3,FALSE),\"Attention\",\"OK\"),\"\")","v":""}]
[null,null,null,null,null,null,null,null,null,null,null,{"$f":"IFERROR(VLOOKUP(K51,Catégories!$B$3:$D$7,2,FALSE),\"\")","v":""},null,null,null,null,null,null,"0h00min00s",null,{"$f":"IFERROR(IF(T51>VLOOKUP(K51,Catégories!$B$3:$D$7,3,FALSE),\"Attention\",\"OK\"),\"\")","v":""}]
[null,null,null,null,null,null,null,null,null,null,null,{"$f":"IFERROR(VLOOKUP(K52,Catégories!$B$3:$D$7,2,FALSE),\"\")","v":""},null,null,null,null,null,null,"0h00min00s",null,{"$f":"IFERROR(IF(T52>VLOOKUP(K52,Catégories!$B$3:$D$7,3,FALSE),\"Attention\",\"OK\"),\"\")","v":""}]
[null,null,null,null,null,null,null,null,null,null,null,{"$f":"IFERROR(VLOOKUP(K53,Catégories!$B$3:$D$7,2,FALSE),\"\")","v":""},null,null,null,null,null,null,"0h00min00s",null,{"$f":"IFERROR(IF(T53>VLOOKUP(K53,Catégories!$B$3:$D$7,3,FALSE),\"Attention\",\"OK\"),\"\")","v":""}]
[null,null,null,null,null,null,null,null,null,null,null,{"$f":"IFERROR(VLOOKUP(K54,Catégories!$B$3:$D$7,2,FALSE),\"\")","v":""},null,null,null,null,null,null,"0h00min00s",null,{"$f":"IFERROR(IF(T54>VLOOKUP(K54,Catégories!$B$3:$D$7,3,FALSE),\"Attention\",\"OK\"),\"\")","v":""}]
[null,null,null,null,null,null,null,null,null,null,null,{"$f":"IFERROR(VLOOKUP(K55,Catégories!$B$3:$D$7,2,FALSE),\"\")","v":""},null,null,null,null,null,null,"0h00min00s",null,{"$f":"IFERROR(IF(T55>VLOOKUP(K55,Catégories!$B$3:$D$7,3,FALSE),\"Attention\",\"OK\"),\"\")","v":""}]
[null,null,null,null,null,null,null,null,null,null,null,{"$f":"IFERROR(VLOOKUP(K56,Catégories!$B$3:$D$7,2,FALSE),\"\")","v":""},null,null,null,null,null,null,"0h00min00s",null,{"$f":"IFERROR(IF(T56>VLOOKUP(K56,Catégories!$B$3:$D$7,3,FALSE),\"Attention\",\"OK\"),\"\")","v":""}]
[null,null,null,null,null,null,null,null,null,null,null,{"$f":"IFERROR(VLOOKUP(K57,Catégories!$B$3:$D$7,2,FALSE),\"\")","v":""},null,null,null,null,null,null,"0h00min00s",null,{"$f":"IFERROR(IF(T57>VLOOKUP(K57,Catégories!$B$3:$D$7,3,FALSE),\"Attention\",\"OK\"),\"\")","v":""}]
[null,null,null,null,null,null,null,null,null,null,null,{"$f":"IFERROR(VLOOKUP(K58,Catégories!$B$3:$D$7,2,FALSE),\"\")","v":""},null,null,null,null,null,null,"0h00min00s",null,{"$f":"IFERROR(IF(T58>VLOOKUP(K58,Catégories!$B$3:$D$7,3,FALSE),\"Attention\",\"OK\"),\"\")","v":""}]
[null,null,null,null,null,null,null,null,null,null,null,{"$f":"IFERROR(VLOOKUP(K59,Catégories!$B$3:$D$7,2,FALSE),\"\")","v":""},null,null,null,null,null,null,"0h00min00s",null,{"$f":"IFERROR(IF(T59>VLOOKUP(K59,Catégories!$B$3:$D$7,3,FALSE),\"Attention\",\"OK\"),\"\")","v":""}]
[null,null,null,null,null,null,null,null,null,null,null,{"$f":"IFERROR(VLOOKUP(K60,Catégories!$B$3:$D$7,2,FALSE),\"\")","v":""},null,null,null,null,null,null,"0h00min00s",null,{"$f":"IFERROR(IF(T60>VLOOKUP(K60,Catégories!$B$3:$D$7,3,FALSE),\"Attention\",\"OK\"),\"\")","v":""}]
[null,null,null,null,null,null,null,null,null,null,null,{"$f":"IFERROR(VLOOKUP(K61,Catégories!$B$3:$D$7,2,FALSE),\"\")","v":""},null,null,null,null,null,null,"0h00min00s",null,{"$f":"IFERROR(IF(T61>VLOOKUP(K61,Catégories!$B$3:$D$7,3,FALSE),\"Attention\",\"OK\"),\"\")","v":""}]
[null,null,null,null,null,null,null,null,null,null,null,{"$f":"IFERROR(VLOOKUP(K62,Catégories!$B$3:$D$7,2,FALSE),\"\")","v":""},null,null,null,null,null,null,"0h00min00s",null,{"$f":"IFERROR(IF(T62>VLOOKUP(K62,Catégories!$B$3:$D$7,3,FALSE),\"Attention\",\"OK\"),\"\")","v":""}]
[null,null,null,null,null,null,null,null,null,null,null,{"$f":"IFERROR(VLOOKUP(K63,Catégories!$B$3:$D$7,2,FALSE),\"\")","v":""},null,null,null,null,null,null,"0h00min00s",null,{"$f":"IFERROR(IF(T63>VLOOKUP(K63,Catégories!$B$3:$D$7,3,FALSE),\"Attention\",\"OK\"),\"\")","v":""}]
[null,null,null,null,null,null,null,null,null,null,null,{"$f":"IFERROR(VLOOKUP(K64,Catégories!$B$3:$D$7,2,FALSE),\"\")","v":""},null,null,null,null,null,null,"0h00min00s",null,{"$f":"IFERROR(IF(T64>VLOOKUP(K64,Catégories!$B$3:$D$7,3,FALSE),\"Attention\",\"OK\"),\"\")","v":""}]
[null,null,null,null,null,null,null,null,null,null,null,{"$f":"IFERROR(VLOOKUP(K65,Catégories!$B$3:$D$7,2,FALSE),\"\")","v":""},null,null,null,null,null,null,"0h00min00s",null,{"$f":"IFERROR(IF(T65>VLOOKUP(K65,Catégories!$B$3:$D$7,3,FALSE),\"Attention\",\"OK\"),\"\")","v":""}]
[null,null,null,null,null,null,null,null,null,null,null,{"$f":"IFERROR(VLOOKUP(K66,Catégories!$B$3:$D$7,2,FALSE),\"\")","v":""},null,null,null,null,null,null,"0h00min00s",null,{"$f":"IFERROR(IF(T66>VLOOKUP(K66,Catégories!$B$3:$D$7,3,FALSE),\"Attention\",\"OK\"),\"\")","v":""}]
[null,null,null,null,null,null,null,null,null,null,null,{"$f":"IFERROR(VLOOKUP(K67,Catégories!$B$3:$D$7,2,FALSE),\"\")","v":""},null,null,null,null,null,null,"0h00min00s",null,{"$f":"IFERROR(IF(T67>VLOOKUP(K67,Catégories!$B$3:$D$7,3,FALSE),\"Attention\",\"OK\"),\"\")","v":""}]
[null,null,null,null,null,null,null,null,null,null,null,{"$f":"IFERROR(VLOOKUP(K68,Catégories!$B$3:$D$7,2,FALSE),\"\")","v":""},null,null,null,null,null,null,"0h00min00s",null,{"$f":"IFERROR(IF(T68>VLOOKUP(K68,Catégories!$B$3:$D$7,3,FALSE),\"Attention\",\"OK\"),\"\")","v":""}]
[null,null,null,null,null,null,null,null,null,null,null,{"$f":"IFERROR(VLOOKUP(K69,Catégories!$B$3:$D$7,2,FALSE),\"\")","v":""},null,null,null,null,null,null,"0h00min00s",null,{"$f":"IFERROR(IF(T69>VLOOKUP(K69,Catégories!$B$3:$D$7,3,FALSE),\"Attention\",\"OK\"),\"\")","v":""}]
[null,null,null,null,null,null,null,null,null,null,null,{"$f":"IFERROR(VLOOKUP(K70,Catégories!$B$3:$D$7,2,FALSE),\"\")","v":""},null,null,null,null,null,null,"0h00min00s",null,{"$f":"IFERROR(IF(T70>VLOOKUP(K70,Catégories!$B$3:$D$7,3,FALSE),\"Attention\",\"OK\"),\"\")","v":""}]
[null,null,null,null,null,null,null,null,null,null,null,{"$f":"IFERROR(VLOOKUP(K71,Catégories!$B$3:$D$7,2,FALSE),\"\")","v":""},null,null,null,null,null,null,"0h00min00s",null,{"$f":"IFERROR(IF(T71>VLOOKUP(K71,Catégories!$B$3:$D$7,3,FALSE),\"Attention\",\"OK\"),\"\")","v":""}]
[null,null,null,null,null,null,null,null,null,null,null,{"$f":"IFERROR(VLOOKUP(K72,Catégories!$B$3:$D$7,2,FALSE),\"\")","v":""},null,null,null,null,null,null,"0h00min00s",null,{"$f":"IFERROR(IF(T72>VLOOKUP(K72,Catégories!$B$3:$D$7,3,FALSE),\"Attention\",\"OK\"),\"\")","v":""}]
[null,null,null,null,null,null,null,null,null,null,null,{"$f":"IFERROR(VLOOKUP(K73,Catégories!$B$3:$D$7,2,FALSE),\"\")","v":""},null,null,null,null,null,null,"0h00min00s",null,{"$f":"IFERROR(IF(T73>VLOOKUP(K73,Catégories!$B$3:$D$7,3,FALSE),\"Attention\",\"OK\"),\"\")","v":""}]
[null,null,null,null,null,null,null,null,null,null,null,{"$f":"IFERROR(VLOOKUP(K74,Catégories!$B$3:$D$7,2,FALSE),\"\")","v":""},null,null,null,null,null,null,"0h00min00s",null,{"$f":"IFERROR(IF(T74>VLOOKUP(K74,Catégories!$B$3:$D$7,3,FALSE),\"Attention\",\"OK\"),\"\")","v":""}]
[null,null,null,null,null,null,null,null,null,null,null,{"$f":"IFERROR(VLOOKUP(K75,Catégories!$B$3:$D$7,2,FALSE),\"\")","v":""},null,null,null,null,null,null,{"$f":"transforme_seconde((P75-M75)*3600+(Q75-N75)*60+(R75-O75))","v":"0h00min00s"},null,{"$f":"IFERROR(IF(T75>VLOOKUP(K75,Catégories!$B$3:$D$7,3,FALSE),\"Attention\",\"OK\"),\"\")","v":""}]
[null,null,null,null,null,null,null,null,null,null,null,{"$f":"IFERROR(VLOOKUP(K76,Catégories!$B$3:$D$7,2,FALSE),\"\")","v":""},null,null,null,null,null,null,"0h00min00s",null,{"$f":"IFERROR(IF(T76>VLOOKUP(K76,Catégories!$B$3:$D$7,3,FALSE),\"Attention\",\"OK\"),\"\")","v":""}]
[null,null,null,null,null,null,null,null,null,null,null,{"$f":"IFERROR(VLOOKUP(K77,Catégories!$B$3:$D$7,2,FALSE),\"\")","v":""},null,null,null,null,null,null,"0h00min00s",null,{"$f":"IFERROR(IF(T77>VLOOKUP(K77,Catégories!$B$3:$D$7,3,FALSE),\"Attention\",\"OK\"),\"\")","v":""}]
[null,null,null,null,null,null,null,null,null,null,null,{"$f":"IFERROR(VLOOKUP(K78,Catégories!$B$3:$D$7,2,FALSE),\"\")","v":""},null,null,null,null,null,null,"0h00min00s",null,{"$f":"IFERROR(IF(T78>VLOOKUP(K78,Catégories!$B$3:$D$7,3,FALSE),\"Attention\",\"OK\"),\"\")","v":""}]
[null,null,null,null,null,null,null,null,null,null,null,{"$f":"IFERROR(VLOOKUP(K79,Catégories!$B$3:$D$7,2,FALSE),\"\")","v":""},null,null,null,null,null,null,"0h00min00s",null,{"$f":"IFERROR(IF(T79>VLOOKUP(K79,Catégories!$B$3:$D$7,3,FALSE),\"Attention\",\"OK\"),\"\")","v":""}]
[null,null,null,null,null,null,null,null,null,null,null,{"$f":"IFERROR(VLOOKUP(K80,Catégories!$B$3:$D$7,2,FALSE),\"\")","v":""},null,null,null,null,null,null,"0h00min00s",null,{"$f":"IFERROR(IF(T80>VLOOKUP(K80,Catégories!$B$3:$D$7,3,FALSE),\"Attention\",\"OK\"),\"\")","v":""}]
[null,null,null,null,null,null,null,null,null,null,null,{"$f":"IFERROR(VLOOKUP(K81,Catégories!$B$3:$D$7,2,FALSE),\"\")","v":""},null,null,null,null,null,null,"0h00min00s",null,{"$f":"IFERROR(IF(T81>VLOOKUP(K81,Catégories!$B$3:$D$7,3,FALSE),\"Attention\",\"OK\"),\"\")","v":""}]
[null,null,null,null,null,null,null,null,null,null,null,{"$f":"IFERROR(VLOOKUP(K82,Catégories!$B$3:$D$7,2,FALSE),\"\")","v":""},null,null,null,null,null,null,"0h00min00s",null,{"$f":"IFERROR(IF(T82>VLOOKUP(K82,Catégories!$B$3:$D$7,3,FALSE),\"Attention\",\"OK\"),\"\")","v":""}]
[null,null,null,null,null,null,null,null,null,null,null,{"$f":"IFERROR(VLOOKUP(K83,Catégories!$B$3:$D$7,2,FALSE),\"\")","v":""},null,null,null,null,null,null,"0h00min00s",null,{"$f":"IFERROR(IF(T83>VLOOKUP(K83,Catégories!$B$3:$D$7,3,FALSE),\"Attention\",\"OK\"),\"\")","v":""}]
[null,null,null,null,null,null,null,null,null,null,null,{"$f":"IFERROR(VLOOKUP(K84,Catégories!$B$3:$D$7,2,FALSE),\"\")","v":""},null,null,null,null,null,null,"0h00min00s",null,{"$f":"IFERROR(IF(T84>VLOOKUP(K84,Catégories!$B$3:$D$7,3,FALSE),\"Attention\",\"OK\"),\"\")","v":""}]
[null,null,null,null,null,null,null,null,null,null,null,{"$f":"IFERROR(VLOOKUP(K85,Catégories!$B$3:$D$7,2,FALSE),\"\")","v":""},null,null,null,null,null,null,"0h00min00s",null,{"$f":"IFERROR(IF(T85>VLOOKUP(K85,Catégories!$B$3:$D$7,3,FALSE),\"Attention\",\"OK\"),\"\")","v":""}]
[null,null,null,null,null,null,null,null,null,null,null,{"$f":"IFERROR(VLOOKUP(K86,Catégories!$B$3:$D$7,2,FALSE),\"\")","v":""},null,null,null,null,null,null,"0h00min00s",null,{"$f":"IFERROR(IF(T86>VLOOKUP(K86,Catégories!$B$3:$D$7,3,FALSE),\"Attention\",\"OK\"),\"\")","v":""}]
[null,null,null,null,null,null,null,null,null,null,null,{"$f":"IFERROR(VLOOKUP(K87,Catégories!$B$3:$D$7,2,FALSE),\"\")","v":""},null,null,null,null,null,null,"0h00min00s",null,{"$f":"IFERROR(IF(T87>VLOOKUP(K87,Catégories!$B$3:$D$7,3,FALSE),\"Attention\",\"OK\"),\"\")","v":""}]
[null,null,null,null,null,null,null,null,null,null,null,{"$f":"IFERROR(VLOOKUP(K88,Catégories!$B$3:$D$7,2,FALSE),\"\")","v":""},null,null,null,null,null,null,"0h00min00s",null,{"$f":"IFERROR(IF(T88>VLOOKUP(K88,Catégories!$B$3:$D$7,3,FALSE),\"Attention\",\"OK\"),\"\")","v":""}]
[null,null,null,null,null,null,null,null,null,null,null,{"$f":"IFERROR(VLOOKUP(K89,Catégories!$B$3:$D$7,2,FALSE),\"\")","v":""},null,null,null,null,null,null,"0h00min00s",null,{"$f":"IFERROR(IF(T89>VLOOKUP(K89,Catégories!$B$3:$D$7,3,FALSE),\"Attention\",\"OK\"),\"\")","v":""}]
[null,null,null,null,null,null,null,null,null,null,null,{"$f":"IFERROR(VLOOKUP(K90,Catégories!$B$3:$D$7,2,FALSE),\"\")","v":""},null,null,null,null,null,null,"0h00min00s",null,{"$f":"IFERROR(IF(T90>VLOOKUP(K90,Catégories!$B$3:$D$7,3,FALSE),\"Attention\",\"OK\"),\"\")","v":""}]
[null,null,null,null,null,null,null,null,null,null,null,{"$f":"IFERROR(VLOOKUP(K91,Catégories!$B$3:$D$7,2,FALSE),\"\")","v":""},null,null,null,null,null,null,"0h00min00s",null,{"$f":"IFERROR(IF(T91>VLOOKUP(K91,Catégories!$B$3:$D$7,3,FALSE),\"Attention\",\"OK\"),\"\")","v":""}]
[null,null,null,null,null,null,null,null,null,null,null,{"$f":"IFERROR(VLOOKUP(K92,Catégories!$B$3:$D$7,2,FALSE),\"\")","v":""},null,null,null,null,null,null,"0h00min00s",null,{"$f":"IFERROR(IF(T92>VLOOKUP(K92,Catégories!$B$3:$D$7,3,FALSE),\"Attention\",\"OK\"),\"\")","v":""}]
[null,null,null,null,null,null,null,null,null,null,null,{"$f":"IFERROR(VLOOKUP(K93,Catégories!$B$3:$D$7,2,FALSE),\"\")","v":""},null,null,null,null,null,null,"0h00min00s",null,{"$f":"IFERROR(IF(T93>VLOOKUP(K93,Catégories!$B$3:$D$7,3,FALSE),\"Attention\",\"OK\"),\"\")","v":""}]
[null,null,null,null,null,null,null,null,null,null,null,{"$f":"IFERROR(VLOOKUP(K94,Catégories!$B$3:$D$7,2,FALSE),\"\")","v":""},null,null,null,null,null,null,"0h00min00s",null,{"$f":"IFERROR(IF(T94>VLOOKUP(K94,Catégories!$B$3:$D$7,3,FALSE),\"Attention\",\"OK\"),\"\")","v":""}]
[null,null,null,null,null,null,null,null,null,null,null,{"$f":"IFERROR(VLOOKUP(K95,Catégories!$B$3:$D$7,2,FALSE),\"\")","v":""},null,null,null,null,null,null,"0h00min00s",null,{"$f":"IFERROR(IF(T95>VLOOKUP(K95,Catégories!$B$3:$D$7,3,FALSE),\"Attention\",\"OK\"),\"\")","v":""}]
[null,null,null,null,null,null,null,null,null,null,null,{"$f":"IFERROR(VLOOKUP(K96,Catégories!$B$3:$D$7,2,FALSE),\"\")","v":""},null,null,null,null,null,null,"0h00min00s",null,{"$f":"IFERROR(IF(T96>VLOOKUP(K96,Catégories!$B$3:$D$7,3,FALSE),\"Attention\",\"OK\"),\"\")","v":""}]
[null,null,null,null,null,null,null,null,null,null,null,{"$f":"IFERROR(VLOOKUP(K97,Catégories!$B$3:$D$7,2,FALSE),\"\")","v":""},null,null,null,null,null,null,"0h00min00s",null,{"$f":"IFERROR(IF(T97>VLOOKUP(K97,Catégories!$B$3:$D$7,3,FALSE),\"Attention\",\"OK\"),\"\")","v":""}]
[null,null,null,null,null,null,null,null,null,null,null,{"$f":"IFERROR(VLOOKUP(K98,Catégories!$B$3:$D$7,2,FALSE),\"\")","v":""},null,null,null,null,null,null,"0h00min00s",null,{"$f":"IFERROR(IF(T98>VLOOKUP(K98,Catégories!$B$3:$D$7,3,FALSE),\"Attention\",\"OK\"),\"\")","v":""}]
[null,null,null,null,null,null,null,null,null,null,null,{"$f":"IFERROR(VLOOKUP(K99,Catégories!$B$3:$D$7,2,FALSE),\"\")","v":""},null,null,null,null,null,null,"0h00min00s",null,{"$f":"IFERROR(IF(T99>VLOOKUP(K99,Catégories!$B$3:$D$7,3,FALSE),\"Attention\",\"OK\"),\"\")","v":""}]
[null,null,null,null,null,null,null,null,null,null,null,{"$f":"IFERROR(VLOOKUP(K100,Catégories!$B$3:$D$7,2,FALSE),\"\")","v":""},null,null,null,null,null,null,"0h00min00s",null,{"$f":"IFERROR(IF(T100>VLOOKUP(K100,Catégories!$B$3:$D$7,3,FALSE),\"Attention\",\"OK\"),\"\")","v":""}]
[null,null,null,null,null,null,null,null,null,null,null,{"$f":"IFERROR(VLOOKUP(K101,Catégories!$B$3:$D$7,2,FALSE),\"\")","v":""},null,null,null,null,null,null,"0h00min00s",null,{"$f":"IFERROR(IF(T101>VLOOKUP(K101,Catégories!$B$3:$D$7,3,FALSE),\"Attention\",\"OK\"),\"\")","v":""}]
[null,null,null,null,null,null,null,null,null,null,null,{"$f":"IFERROR(VLOOKUP(K102,Catégories!$B$3:$D$7,2,FALSE),\"\")","v":""},null,null,null,null,null,null,"0h00min00s",null,{"$f":"IFERROR(IF(T102>VLOOKUP(K102,Catégories!$B$3:$D$7,3,FALSE),\"Attention\",\"OK\"),\"\")","v":""}]
[null,null,null,null,null,null,null,null,null,null,null,{"$f":"IFERROR(VLOOKUP(K103,Catégories!$B$3:$D$7,2,FALSE),\"\")","v":""},null,null,null,null,null,null,"0h00min00s",null,{"$f":"IFERROR(IF(T103>VLOOKUP(K103,Catégories!$B$3:$D$7,3,FALSE),\"Attention\",\"OK\"),\"\")","v":""}]
[null,null,null,null,null,null,null,null,null,null,null,{"$f":"IFERROR(VLOOKUP(K104,Catégories!$B$3:$D$7,2,FALSE),\"\")","v":""},null,null,null,null,null,null,"0h00min00s",null,{"$f":"IFERROR(IF(T104>VLOOKUP(K104,Catégories!$B$3:$D$7,3,FALSE),\"Attention\",\"OK\"),\"\")","v":""}]
[null,null,null,null,null,null,null,null,null,null,null,{"$f":"IFERROR(VLOOKUP(K105,Catégories!$B$3:$D$7,2,FALSE),\"\")","v":""},null,null,null,null,null,null,"0h00min00s",null,{"$f":"IFERROR(IF(T105>VLOOKUP(K105,Catégories!$B$3:$D$7,3,FALSE),\"Attention\",\"OK\"),\"\")","v":""}]
[null,null,null,null,null,null,null,null,null,null,null,{"$f":"IFERROR(VLOOKUP(K106,Catégories!$B$3:$D$7,2,FALSE),\"\")","v":""},null,null,null,null,null,null,"0h00min00s",null,{"$f":"IFERROR(IF(T106>VLOOKUP(K106,Catégories!$B$3:$D$7,3,FALSE),\"Attention\",\"OK\"),\"\")","v":""}]
[null,null,null,null,null,null,null,null,null,null,null,{"$f":"IFERROR(VLOOKUP(K107,Catégories!$B$3:$D$7,2,FALSE),\"\")","v":""},null,null,null,null,null,null,"0h00min00s",null,{"$f":"IFERROR(IF(T107>VLOOKUP(K107,Catégories!$B$3:$D$7,3,FALSE),\"Attention\",\"OK\"),\"\")","v":""}]
[null,null,null,null,null,null,null,null,null,null,null,{"$f":"IFERROR(VLOOKUP(K108,Catégories!$B$3:$D$7,2,FALSE),\"\")","v":""},null,null,null,null,null,null,"0h00min00s",null,{"$f":"IFERROR(IF(T108>VLOOKUP(K108,Catégories!$B$3:$D$7,3,FALSE),\"Attention\",\"OK\"),\"\")","v":""}]
[null,null,null,null,null,null,null,null,null,null,null,{"$f":"IFERROR(VLOOKUP(K109,Catégories!$B$3:$D$7,2,FALSE),\"\")","v":""},null,null,null,null,null,null,"0h00min00s",null,{"$f":"IFERROR(IF(T109>VLOOKUP(K109,Catégories!$B$3:$D$7,3,FALSE),\"Attention\",\"OK\"),\"\")","v":""}]
[null,null,null,null,null,null,null,null,null,null,null,{"$f":"IFERROR(VLOOKUP(K110,Catégories!$B$3:$D$7,2,FALSE),\"\")","v":""},null,null,null,null,null,null,"0h00min00s",null,{"$f":"IFERROR(IF(T110>VLOOKUP(K110,Catégories!$B$3:$D$7,3,FALSE),\"Attention\",\"OK\"),\"\")","v":""}]
[null,null,null,null,null,null,null,null,null,null,null,{"$f":"IFERROR(VLOOKUP(K111,Catégories!$B$3:$D$7,2,FALSE),\"\")","v":""},null,null,null,null,null,null,"0h00min00s",null,{"$f":"IFERROR(IF(T111>VLOOKUP(K111,Catégories!$B$3:$D$7,3,FALSE),\"Attention\",\"OK\"),\"\")","v":""}]
[null,null,null,null,null,null,null,null,null,null,null,{"$f":"IFERROR(VLOOKUP(K112,Catégories!$B$3:$D$7,2,FALSE),\"\")","v":""},null,null,null,null,null,null,"0h00min00s",null,{"$f":"IFERROR(IF(T112>VLOOKUP(K112,Catégories!$B$3:$D$7,3,FALSE),\"Attention\",\"OK\"),\"\")","v":""}]
[null,null,null,null,null,null,null,null,null,null,null,{"$f":"IFERROR(VLOOKUP(K113,Catégories!$B$3:$D$7,2,FALSE),\"\")","v":""},null,null,null,null,null,null,"0h00min00s",null,{"$f":"IFERROR(IF(T113>VLOOKUP(K113,Catégories!$B$3:$D$7,3,FALSE),\"Attention\",\"OK\"),\"\")","v":""}]
[null,null,null,null,null,null,null,null,null,null,null,{"$f":"IFERROR(VLOOKUP(K114,Catégories!$B$3:$D$7,2,FALSE),\"\")","v":""},null,null,null,null,null,null,"0h00min00s",null,{"$f":"IFERROR(IF(T114>VLOOKUP(K114,Catégories!$B$3:$D$7,3,FALSE),\"Attention\",\"OK\"),\"\")","v":""}]
[null,null,null,null,null,null,null,null,null,null,null,{"$f":"IFERROR(VLOOKUP(K115,Catégories!$B$3:$D$7,2,FALSE),\"\")","v":""},null,null,null,null,null,null,"0h00min00s",null,{"$f":"IFERROR(IF(T115>VLOOKUP(K115,Catégories!$B$3:$D$7,3,FALSE),\"Attention\",\"OK\"),\"\")","v":""}]
[null,null,null,null,null,null,null,null,null,null,null,{"$f":"IFERROR(VLOOKUP(K116,Catégories!$B$3:$D$7,2,FALSE),\"\")","v":""},null,null,null,null,null,null,"0h00min00s",null,{"$f":"IFERROR(IF(T116>VLOOKUP(K116,Catégories!$B$3:$D$7,3,FALSE),\"Attention\",\"OK\"),\"\")","v":""}]
[null,null,null,null,null,null,null,null,null,null,null,{"$f":"IFERROR(VLOOKUP(K117,Catégories!$B$3:$D$7,2,FALSE),\"\")","v":""},null,null,null,null,null,null,"0h00min00s",null,{"$f":"IFERROR(IF(T117>VLOOKUP(K117,Catégories!$B$3:$D$7,3,FALSE),\"Attention\",\"OK\"),\"\")","v":""}]
[null,null,null,null,null,null,null,null,null,null,null,{"$f":"IFERROR(VLOOKUP(K118,Catégories!$B$3:$D$7,2,FALSE),\"\")","v":""},null,null,null,null,null,null,"0h00min00s",null,{"$f":"IFERROR(IF(T118>VLOOKUP(K118,Catégories!$B$3:$D$7,3,FALSE),\"Attention\",\"OK\"),\"\")","v":""}]
[null,null,null,null,null,null,null,null,null,null,null,{"$f":"IFERROR(VLOOKUP(K119,Catégories!$B$3:$D$7,2,FALSE),\"\")","v":""},null,null,null,null,null,null,"0h00min00s",null,{"$f":"IFERROR(IF(T119>VLOOKUP(K119,Catégories!$B$3:$D$7,3,FALSE),\"Attention\",\"OK\"),\"\")","v":""}]
[null,null,null,null,null,null,null,null,null,null,null,{"$f":"IFERROR(VLOOKUP(K120,Catégories!$B$3:$D$7,2,FALSE),\"\")","v":""},null,null,null,null,null,null,"0h00min00s",null,{"$f":"IFERROR(IF(T120>VLOOKUP(K120,Catégories!$B$3:$D$7,3,FALSE),\"Attention\",\"OK\"),\"\")","v":""}]
[null,null,null,null,null,null,null,null,null,null,null,{"$f":"IFERROR(VLOOKUP(K121,Catégories!$B$3:$D$7,2,FALSE),\"\")","v":""},null,null,null,null,null,null,"0h00min00s",null,{"$f":"IFERROR(IF(T121>VLOOKUP(K121,Catégories!$B$3:$D$7,3,FALSE),\"Attention\",\"OK\"),\"\")","v":""}]
[null,null,null,null,null,null,null,null,null,null,null,{"$f":"IFERROR(VLOOKUP(K122,Catégories!$B$3:$D$7,2,FALSE),\"\")","v":""},null,null,null,null,null,null,"0h00min00s",null,{"$f":"IFERROR(IF(T122>VLOOKUP(K122,Catégories!$B$3:$D$7,3,FALSE),\"Attention\",\"OK\"),\"\")","v":""}]
[null,null,null,null,null,null,null,null,null,null,null,{"$f":"IFERROR(VLOOKUP(K123,Catégories!$B$3:$D$7,2,FALSE),\"\")","v":""},null,null,null,null,null,null,"0h00min00s",null,{"$f":"IFERROR(IF(T123>VLOOKUP(K123,Catégories!$B$3:$D$7,3,FALSE),\"Attention\",\"OK\"),\"\")","v":""}]
[null,null,null,null,null,null,null,null,null,null,null,{"$f":"IFERROR(VLOOKUP(K124,Catégories!$B$3:$D$7,2,FALSE),\"\")","v":""},null,null,null,null,null,null,"0h00min00s",null,{"$f":"IFERROR(IF(T124>VLOOKUP(K124,Catégories!$B$3:$D$7,3,FALSE),\"Attention\",\"OK\"),\"\")","v":""}]
[null,null,null,null,null,null,null,null,null,null,null,{"$f":"IFERROR(VLOOKUP(K125,Catégories!$B$3:$D$7,2,FALSE),\"\")","v":""},null,null,null,null,null,null,"0h00min00s",null,{"$f":"IFERROR(IF(T125>VLOOKUP(K125,Catégories!$B$3:$D$7,3,FALSE),\"Attention\",\"OK\"),\"\")","v":""}]
[null,null,null,null,null,null,null,null,null,null,null,{"$f":"IFERROR(VLOOKUP(K126,Catégories!$B$3:$D$7,2,FALSE),\"\")","v":""},null,null,null,null,null,null,"0h00min00s",null,{"$f":"IFERROR(IF(T126>VLOOKUP(K126,Catégories!$B$3:$D$7,3,FALSE),\"Attention\",\"OK\"),\"\")","v":""}]
[null,null,null,null,null,null,null,null,null,null,null,{"$f":"IFERROR(VLOOKUP(K127,Catégories!$B$3:$D$7,2,FALSE),\"\")","v":""},null,null,null,null,null,null,"0h00min00s",null,{"$f":"IFERROR(IF(T127>VLOOKUP(K127,Catégories!$B$3:$D$7,3,FALSE),\"Attention\",\"OK\"),\"\")","v":""}]
[null,null,null,null,null,null,null,null,null,null,null,{"$f":"IFERROR(VLOOKUP(K128,Catégories!$B$3:$D$7,2,FALSE),\"\")","v":""},null,null,null,null,null,null,"0h00min00s",null,{"$f":"IFERROR(IF(T128>VLOOKUP(K128,Catégories!$B$3:$D$7,3,FALSE),\"Attention\",\"OK\"),\"\")","v":""}]
[null,null,null,null,null,null,null,null,null,null,null,{"$f":"IFERROR(VLOOKUP(K129,Catégories!$B$3:$D$7,2,FALSE),\"\")","v":""},null,null,null,null,null,null,"0h00min00s",null,{"$f":"IFERROR(IF(T129>VLOOKUP(K129,Catégories!$B$3:$D$7,3,FALSE),\"Attention\",\"OK\"),\"\")","v":""}]
[null,null,null,null,null,null,null,null,null,null,null,{"$f":"IFERROR(VLOOKUP(K130,Catégories!$B$3:$D$7,2,FALSE),\"\")","v":""},null,null,null,null,null,null,"0h00min00s",null,{"$f":"IFERROR(IF(T130>VLOOKUP(K130,Catégories!$B$3:$D$7,3,FALSE),\"Attention\",\"OK\"),\"\")","v":""}]
[null,null,null,null,null,null,null,null,null,null,null,{"$f":"IFERROR(VLOOKUP(K131,Catégories!$B$3:$D$7,2,FALSE),\"\")","v":""},null,null,null,null,null,null,"0h00min00s",null,{"$f":"IFERROR(IF(T131>VLOOKUP(K131,Catégories!$B$3:$D$7,3,FALSE),\"Attention\",\"OK\"),\"\")","v":""}]
[null,null,null,null,null,null,null,null,null,null,null,{"$f":"IFERROR(VLOOKUP(K132,Catégories!$B$3:$D$7,2,FALSE),\"\")","v":""},null,null,null,null,null,null,"0h00min00s",null,{"$f":"IFERROR(IF(T132>VLOOKUP(K132,Catégories!$B$3:$D$7,3,FALSE),\"Attention\",\"OK\"),\"\")","v":""}]
[null,null,null,null,null,null,null,null,null,null,null,{"$f":"IFERROR(VLOOKUP(K133,Catégories!$B$3:$D$7,2,FALSE),\"\")","v":""},null,null,null,null,null,null,"0h00min00s",null,{"$f":"IFERROR(IF(T133>VLOOKUP(K133,Catégories!$B$3:$D$7,3,FALSE),\"Attention\",\"OK\"),\"\")","v":""}]
[null,null,null,null,null,null,null,null,null,null,null,{"$f":"IFERROR(VLOOKUP(K134,Catégories!$B$3:$D$7,2,FALSE),\"\")","v":""},null,null,null,null,null,null,"0h00min00s",null,{"$f":"IFERROR(IF(T134>VLOOKUP(K134,Catégories!$B$3:$D$7,3,FALSE),\"Attention\",\"OK\"),\"\")","v":""}]
[null,null,null,null,null,null,null,null,null,null,null,{"$f":"IFERROR(VLOOKUP(K135,Catégories!$B$3:$D$7,2,FALSE),\"\")","v":""},null,null,null,null,null,null,"0h00min00s",null,{"$f":"IFERROR(IF(T135>VLOOKUP(K135,Catégories!$B$3:$D$7,3,FALSE),\"Attention\",\"OK\"),\"\")","v":""}]
[null,null,null,null,null,null,null,null,null,null,null,{"$f":"IFERROR(VLOOKUP(K136,Catégories!$B$3:$D$7,2,FALSE),\"\")","v":""},null,null,null,null,null,null,"0h00min00s",null,{"$f":"IFERROR(IF(T136>VLOOKUP(K136,Catégories!$B$3:$D$7,3,FALSE),\"Attention\",\"OK\"),\"\")","v":""}]
[null,null,null,null,null,null,null,null,null,null,null,{"$f":"IFERROR(VLOOKUP(K137,Catégories!$B$3:$D$7,2,FALSE),\"\")","v":""},null,null,null,null,null,null,"0h00min00s",null,{"$f":"IFERROR(IF(T137>VLOOKUP(K137,Catégories!$B$3:$D$7,3,FALSE),\"Attention\",\"OK\"),\"\")","v":""}]
[null,null,null,null,null,null,null,null,null,null,null,{"$f":"IFERROR(VLOOKUP(K138,Catégories!$B$3:$D$7,2,FALSE),\"\")","v":""},null,null,null,null,null,null,"0h00min00s",null,{"$f":"IFERROR(IF(T138>VLOOKUP(K138,Catégories!$B$3:$D$7,3,FALSE),\"Attention\",\"OK\"),\"\")","v":""}]
[null,null,null,null,null,null,null,null,null,null,null,{"$f":"IFERROR(VLOOKUP(K139,Catégories!$B$3:$D$7,2,FALSE),\"\")","v":""},null,null,null,null,null,null,{"$f":"transforme_seconde((P139-M139)*3600+(Q139-N139)*60+(R139-O139))","v":"0h00min00s"},null,{"$f":"IFERROR(IF(T139>VLOOKUP(K139,Catégories!$B$3:$D$7,3,FALSE),\"Attention\",\"OK\"),\"\")","v":""}]
[null,null,null,null,null,null,null,null,null,null,null,{"$f":"IFERROR(VLOOKUP(K140,Catégories!$B$3:$D$7,2,FALSE),\"\")","v":""},null,null,null,null,null,null,"0h00min00s",null,{"$f":"IFERROR(IF(T140>VLOOKUP(K140,Catégories!$B$3:$D$7,3,FALSE),\"Attention\",\"OK\"),\"\")","v":""}]
[null,null,null,null,null,null,null,null,null,null,null,{"$f":"IFERROR(VLOOKUP(K141,Catégories!$B$3:$D$7,2,FALSE),\"\")","v":""},null,null,null,null,null,null,"0h00min00s",null,{"$f":"IFERROR(IF(T141>VLOOKUP(K141,Catégories!$B$3:$D$7,3,FALSE),\"Attention\",\"OK\"),\"\")","v":""}]
[null,null,null,null,null,null,null,null,null,null,null,{"$f":"IFERROR(VLOOKUP(K142,Catégories!$B$3:$D$7,2,FALSE),\"\")","v":""},null,null,null,null,null,null,"0h00min00s",null,{"$f":"IFERROR(IF(T142>VLOOKUP(K142,Catégories!$B$3:$D$7,3,FALSE),\"Attention\",\"OK\"),\"\")","v":""}]
[null,null,null,null,null,null,null,null,null,null,null,{"$f":"IFERROR(VLOOKUP(K143,Catégories!$B$3:$D$7,2,FALSE),\"\")","v":""},null,null,null,null,null,null,"0h00min00s",null,{"$f":"IFERROR(IF(T143>VLOOKUP(K143,Catégories!$B$3:$D$7,3,FALSE),\"Attention\",\"OK\"),\"\")","v":""}]
[null,null,null,null,null,null,null,null,null,null,null,{"$f":"IFERROR(VLOOKUP(K144,Catégories!$B$3:$D$7,2,FALSE),\"\")","v":""},null,null,null,null,null,null,"0h00min00s",null,{"$f":"IFERROR(IF(T144>VLOOKUP(K144,Catégories!$B$3:$D$7,3,FALSE),\"Attention\",\"OK\"),\"\")","v":""}]
[null,null,null,null,null,null,null,null,null,null,null,{"$f":"IFERROR(VLOOKUP(K145,Catégories!$B$3:$D$7,2,FALSE),\"\")","v":""},null,null,null,null,null,null,"0h00min00s",null,{"$f":"IFERROR(IF(T145>VLOOKUP(K145,Catégories!$B$3:$D$7,3,FALSE),\"Attention\",\"OK\"),\"\")","v":""}]
[null,null,null,null,null,null,null,null,null,null,null,{"$f":"IFERROR(VLOOKUP(K146,Catégories!$B$3:$D$7,2,FALSE),\"\")","v":""},null,null,null,null,null,null,"0h00min00s",null,{"$f":"IFERROR(IF(T146>VLOOKUP(K146,Catégories!$B$3:$D$7,3,FALSE),\"Attention\",\"OK\"),\"\")","v":""}]
[null,null,null,null,null,null,null,null,null,null,null,{"$f":"IFERROR(VLOOKUP(K147,Catégories!$B$3:$D$7,2,FALSE),\"\")","v":""},null,null,null,null,null,null,"0h00min00s",null,{"$f":"IFERROR(IF(T147>VLOOKUP(K147,Catégories!$B$3:$D$7,3,FALSE),\"Attention\",\"OK\"),\"\")","v":""}]
[null,null,null,null,null,null,null,null,null,null,null,{"$f":"IFERROR(VLOOKUP(K148,Catégories!$B$3:$D$7,2,FALSE),\"\")","v":""},null,null,null,null,null,null,"0h00min00s",null,{"$f":"IFERROR(IF(T148>VLOOKUP(K148,Catégories!$B$3:$D$7,3,FALSE),\"Attention\",\"OK\"),\"\")","v":""}]
[null,null,null,null,null,null,null,null,null,null,null,{"$f":"IFERROR(VLOOKUP(K149,Catégories!$B$3:$D$7,2,FALSE),\"\")","v":""},null,null,null,null,null,null,"0h00min00s",null,{"$f":"IFERROR(IF(T149>VLOOKUP(K149,Catégories!$B$3:$D$7,3,FALSE),\"Attention\",\"OK\"),\"\")","v":""}]
[null,null,null,null,null,null,null,null,null,null,null,{"$f":"IFERROR(VLOOKUP(K150,Catégories!$B$3:$D$7,2,FALSE),\"\")","v":""},null,null,null,null,null,null,"0h00min00s",null,{"$f":"IFERROR(IF(T150>VLOOKUP(K150,Catégories!$B$3:$D$7,3,FALSE),\"Attention\",\"OK\"),\"\")","v":""}]
[null,null,null,null,null,null,null,null,null,null,null,{"$f":"IFERROR(VLOOKUP(K151,Catégories!$B$3:$D$7,2,FALSE),\"\")","v":""},null,null,null,null,null,null,"0h00min00s",null,{"$f":"IFERROR(IF(T151>VLOOKUP(K151,Catégories!$B$3:$D$7,3,FALSE),\"Attention\",\"OK\"),\"\")","v":""}]
[null,null,null,null,null,null,null,null,null,null,null,{"$f":"IFERROR(VLOOKUP(K152,Catégories!$B$3:$D$7,2,FALSE),\"\")","v":""},null,null,null,null,null,null,"0h00min00s",null,{"$f":"IFERROR(IF(T152>VLOOKUP(K152,Catégories!$B$3:$D$7,3,FALSE),\"Attention\",\"OK\"),\"\")","v":""}]
[null,null,null,null,null,null,null,null,null,null,null,{"$f":"IFERROR(VLOOKUP(K153,Catégories!$B$3:$D$7,2,FALSE),\"\")","v":""},null,null,null,null,null,null,"0h00min00s",null,{"$f":"IFERROR(IF(T153>VLOOKUP(K153,Catégories!$B$3:$D$7,3,FALSE),\"Attention\",\"OK\"),\"\")","v":""}]
[null,null,null,null,null,null,null,null,null,null,null,{"$f":"IFERROR(VLOOKUP(K154,Catégories!$B$3:$D$7,2,FALSE),\"\")","v":""},null,null,null,null,null,null,"0h00min00s",null,{"$f":"IFERROR(IF(T154>VLOOKUP(K154,Catégories!$B$3:$D$7,3,FALSE),\"Attention\",\"OK\"),\"\")","v":""}]
[null,null,null,null,null,null,null,null,null,null,null,{"$f":"IFERROR(VLOOKUP(K155,Catégories!$B$3:$D$7,2,FALSE),\"\")","v":""},null,null,null,null,null,null,"0h00min00s",null,{"$f":"IFERROR(IF(T155>VLOOKUP(K155,Catégories!$B$3:$D$7,3,FALSE),\"Attention\",\"OK\"),\"\")","v":""}]
[null,null,null,null,null,null,null,null,null,null,null,{"$f":"IFERROR(VLOOKUP(K156,Catégories!$B$3:$D$7,2,FALSE),\"\")","v":""},null,null,null,null,null,null,"0h00min00s",null,{"$f":"IFERROR(IF(T156>VLOOKUP(K156,Catégories!$B$3:$D$7,3,FALSE),\"Attention\",\"OK\"),\"\")","v":""}]
[null,null,null,null,null,null,null,null,null,null,null,{"$f":"IFERROR(VLOOKUP(K157,Catégories!$B$3:$D$7,2,FALSE),\"\")","v":""},null,null,null,null,null,null,"0h00min00s",null,{"$f":"IFERROR(IF(T157>VLOOKUP(K157,Catégories!$B$3:$D$7,3,FALSE),\"Attention\",\"OK\"),\"\")","v":""}]
[null,null,null,null,null,null,null,null,null,null,null,{"$f":"IFERROR(VLOOKUP(K158,Catégories!$B$3:$D$7,2,FALSE),\"\")","v":""},null,null,null,null,null,null,"0h00min00s",null,{"$f":"IFERROR(IF(T158>VLOOKUP(K158,Catégories!$B$3:$D$7,3,FALSE),\"Attention\",\"OK\"),\"\")","v":""}]
[null,null,null,null,null,null,null,null,null,null,null,{"$f":"IFERROR(VLOOKUP(K159,Catégories!$B$3:$D$7,2,FALSE),\"\")","v":""},null,null,null,null,null,null,"0h00min00s",null,{"$f":"IFERROR(IF(T159>VLOOKUP(K159,Catégories!$B$3:$D$7,3,FALSE),\"Attention\",\"OK\"),\"\")","v":""}]
[null,null,null,null,null,null,null,null,null,null,null,{"$f":"IFERROR(VLOOKUP(K160,Catégories!$B$3:$D$7,2,FALSE),\"\")","v":""},null,null,null,null,null,null,"0h00min00s",null,{"$f":"IFERROR(IF(T160>VLOOKUP(K160,Catégories!$B$3:$D$7,3,FALSE),\"Attention\",\"OK\"),\"\")","v":""}]
[null,null,null,null,null,null,null,null,null,null,null,{"$f":"IFERROR(VLOOKUP(K161,Catégories!$B$3:$D$7,2,FALSE),\"\")","v":""},null,null,null,null,null,null,"0h00min00s",null,{"$f":"IFERROR(IF(T161>VLOOKUP(K161,Catégories!$B$3:$D$7,3,FALSE),\"Attention\",\"OK\"),\"\")","v":""}]
[null,null,null,null,null,null,null,null,null,null,null,{"$f":"IFERROR(VLOOKUP(K162,Catégories!$B$3:$D$7,2,FALSE),\"\")","v":""},null,null,null,null,null,null,"0h00min00s",null,{"$f":"IFERROR(IF(T162>VLOOKUP(K162,Catégories!$B$3:$D$7,3,FALSE),\"Attention\",\"OK\"),\"\")","v":""}]
[null,null,null,null,null,null,null,null,null,null,null,{"$f":"IFERROR(VLOOKUP(K163,Catégories!$B$3:$D$7,2,FALSE),\"\")","v":""},null,null,null,null,null,null,"0h00min00s",null,{"$f":"IFERROR(IF(T163>VLOOKUP(K163,Catégories!$B$3:$D$7,3,FALSE),\"Attention\",\"OK\"),\"\")","v":""}]
[null,null,null,null,null,null,null,null,null,null,null,{"$f":"IFERROR(VLOOKUP(K164,Catégories!$B$3:$D$7,2,FALSE),\"\")","v":""},null,null,null,null,null,null,"0h00min00s",null,{"$f":"IFERROR(IF(T164>VLOOKUP(K164,Catégories!$B$3:$D$7,3,FALSE),\"Attention\",\"OK\"),\"\")","v":""}]
[null,null,null,null,null,null,null,null,null,null,null,{"$f":"IFERROR(VLOOKUP(K165,Catégories!$B$3:$D$7,2,FALSE),\"\")","v":""},null,null,null,null,null,null,"0h00min00s",null,{"$f":"IFERROR(IF(T165>VLOOKUP(K165,Catégories!$B$3:$D$7,3,FALSE),\"Attention\",\"OK\"),\"\")","v":""}]
[null,null,null,null,null,null,null,null,null,null,null,{"$f":"IFERROR(VLOOKUP(K166,Catégories!$B$3:$D$7,2,FALSE),\"\")","v":""},null,null,null,null,null,null,"0h00min00s",null,{"$f":"IFERROR(IF(T166>VLOOKUP(K166,Catégories!$B$3:$D$7,3,FALSE),\"Attention\",\"OK\"),\"\")","v":""}]
[null,null,null,null,null,null,null,null,null,null,null,{"$f":"IFERROR(VLOOKUP(K167,Catégories!$B$3:$D$7,2,FALSE),\"\")","v":""},null,null,null,null,null,null,"0h00min00s",null,{"$f":"IFERROR(IF(T167>VLOOKUP(K167,Catégories!$B$3:$D$7,3,FALSE),\"Attention\",\"OK\"),\"\")","v":""}]
[null,null,null,null,null,null,null,null,null,null,null,{"$f":"IFERROR(VLOOKUP(K168,Catégories!$B$3:$D$7,2,FALSE),\"\")","v":""},null,null,null,null,null,null,"0h00min00s",null,{"$f":"IFERROR(IF(T168>VLOOKUP(K168,Catégories!$B$3:$D$7,3,FALSE),\"Attention\",\"OK\"),\"\")","v":""}]
[null,null,null,null,null,null,null,null,null,null,null,{"$f":"IFERROR(VLOOKUP(K169,Catégories!$B$3:$D$7,2,FALSE),\"\")","v":""},null,null,null,null,null,null,"0h00min00s",null,{"$f":"IFERROR(IF(T169>VLOOKUP(K169,Catégories!$B$3:$D$7,3,FALSE),\"Attention\",\"OK\"),\"\")","v":""}]
[null,null,null,null,null,null,null,null,null,null,null,{"$f":"IFERROR(VLOOKUP(K170,Catégories!$B$3:$D$7,2,FALSE),\"\")","v":""},null,null,null,null,null,null,"0h00min00s",null,{"$f":"IFERROR(IF(T170>VLOOKUP(K170,Catégories!$B$3:$D$7,3,FALSE),\"Attention\",\"OK\"),\"\")","v":""}]
[null,null,null,null,null,null,null,null,null,null,null,{"$f":"IFERROR(VLOOKUP(K171,Catégories!$B$3:$D$7,2,FALSE),\"\")","v":""},null,null,null,null,null,null,"0h00min00s",null,{"$f":"IFERROR(IF(T171>VLOOKUP(K171,Catégories!$B$3:$D$7,3,FALSE),\"Attention\",\"OK\"),\"\")","v":""}]
[null,null,null,null,null,null,null,null,null,null,null,{"$f":"IFERROR(VLOOKUP(K172,Catégories!$B$3:$D$7,2,FALSE),\"\")","v":""},null,null,null,null,null,null,"0h00min00s",null,{"$f":"IFERROR(IF(T172>VLOOKUP(K172,Catégories!$B$3:$D$7,3,FALSE),\"Attention\",\"OK\"),\"\")","v":""}]
[null,null,null,null,null,null,null,null,null,null,null,{"$f":"IFERROR(VLOOKUP(K173,Catégories!$B$3:$D$7,2,FALSE),\"\")","v":""},null,null,null,null,null,null,"0h00min00s",null,{"$f":"IFERROR(IF(T173>VLOOKUP(K173,Catégories!$B$3:$D$7,3,FALSE),\"Attention\",\"OK\"),\"\")","v":""}]
[null,null,null,null,null,null,null,null,null,null,null,{"$f":"IFERROR(VLOOKUP(K174,Catégories!$B$3:$D$7,2,FALSE),\"\")","v":""},null,null,null,null,null,null,"0h00min00s",null,{"$f":"IFERROR(IF(T174>VLOOKUP(K174,Catégories!$B$3:$D$7,3,FALSE),\"Attention\",\"OK\"),\"\")","v":""}]
[null,null,null,null,null,null,null,null,null,null,null,{"$f":"IFERROR(VLOOKUP(K175,Catégories!$B$3:$D$7,2,FALSE),\"\")","v":""},null,null,null,null,null,null,"0h00min00s",null,{"$f":"IFERROR(IF(T175>VLOOKUP(K175,Catégories!$B$3:$D$7,3,FALSE),\"Attention\",\"OK\"),\"\")","v":""}]
[null,null,null,null,null,null,null,null,null,null,null,{"$f":"IFERROR(VLOOKUP(K176,Catégories!$B$3:$D$7,2,FALSE),\"\")","v":""},null,null,null,null,null,null,"0h00min00s",null,{"$f":"IFERROR(IF(T176>VLOOKUP(K176,Catégories!$B$3:$D$7,3,FALSE),\"Attention\",\"OK\"),\"\")","v":""}]
[null,null,null,null,null,null,null,null,null,null,null,{"$f":"IFERROR(VLOOKUP(K177,Catégories!$B$3:$D$7,2,FALSE),\"\")","v":""},null,null,null,null,null,null,"0h00min00s",null,{"$f":"IFERROR(IF(T177>VLOOKUP(K177,Catégories!$B$3:$D$7,3,FALSE),\"Attention\",\"OK\"),\"\")","v":""}]
[null,null,null,null,null,null,null,null,null,null,null,{"$f":"IFERROR(VLOOKUP(K178,Catégories!$B$3:$D$7,2,FALSE),\"\")","v":""},null,null,null,null,null,null,"0h00min00s",null,{"$f":"IFERROR(IF(T178>VLOOKUP(K178,Catégories!$B$3:$D$7,3,FALSE),\"Attention\",\"OK\"),\"\")","v":""}]
[null,null,null,null,null,null,null,null,null,null,null,{"$f":"IFERROR(VLOOKUP(K179,Catégories!$B$3:$D$7,2,FALSE),\"\")","v":""},null,null,null,null,null,null,"0h00min00s",null,{"$f":"IFERROR(IF(T179>VLOOKUP(K179,Catégories!$B$3:$D$7,3,FALSE),\"Attention\",\"OK\"),\"\")","v":""}]
[null,null,null,null,null,null,null,null,null,null,null,{"$f":"IFERROR(VLOOKUP(K180,Catégories!$B$3:$D$7,2,FALSE),\"\")","v":""},null,null,null,null,null,null,"0h00min00s",null,{"$f":"IFERROR(IF(T180>VLOOKUP(K180,Catégories!$B$3:$D$7,3,FALSE),\"Attention\",\"OK\"),\"\")","v":""}]
[null,null,null,null,null,null,null,null,null,null,null,{"$f":"IFERROR(VLOOKUP(K181,Catégories!$B$3:$D$7,2,FALSE),\"\")","v":""},null,null,null,null,null,null,"0h00min00s",null,{"$f":"IFERROR(IF(T181>VLOOKUP(K181,Catégories!$B$3:$D$7,3,FALSE),\"Attention\",\"OK\"),\"\")","v":""}]
[null,null,null,null,null,null,null,null,null,null,null,{"$f":"IFERROR(VLOOKUP(K182,Catégories!$B$3:$D$7,2,FALSE),\"\")","v":""},null,null,null,null,null,null,"0h00min00s",null,{"$f":"IFERROR(IF(T182>VLOOKUP(K182,Catégories!$B$3:$D$7,3,FALSE),\"Attention\",\"OK\"),\"\")","v":""}]
[null,null,null,null,null,null,null,null,null,null,null,{"$f":"IFERROR(VLOOKUP(K183,Catégories!$B$3:$D$7,2,FALSE),\"\")","v":""},null,null,null,null,null,null,"0h00min00s",null,{"$f":"IFERROR(IF(T183>VLOOKUP(K183,Catégories!$B$3:$D$7,3,FALSE),\"Attention\",\"OK\"),\"\")","v":""}]
[null,null,null,null,null,null,null,null,null,null,null,{"$f":"IFERROR(VLOOKUP(K184,Catégories!$B$3:$D$7,2,FALSE),\"\")","v":""},null,null,null,null,null,null,"0h00min00s",null,{"$f":"IFERROR(IF(T184>VLOOKUP(K184,Catégories!$B$3:$D$7,3,FALSE),\"Attention\",\"OK\"),\"\")","v":""}]
[null,null,null,null,null,null,null,null,null,null,null,{"$f":"IFERROR(VLOOKUP(K185,Catégories!$B$3:$D$7,2,FALSE),\"\")","v":""},null,null,null,null,null,null,"0h00min00s",null,{"$f":"IFERROR(IF(T185>VLOOKUP(K185,Catégories!$B$3:$D$7,3,FALSE),\"Attention\",\"OK\"),\"\")","v":""}]
[null,null,null,null,null,null,null,null,null,null,null,{"$f":"IFERROR(VLOOKUP(K186,Catégories!$B$3:$D$7,2,FALSE),\"\")","v":""},null,null,null,null,null,null,"0h00min00s",null,{"$f":"IFERROR(IF(T186>VLOOKUP(K186,Catégories!$B$3:$D$7,3,FALSE),\"Attention\",\"OK\"),\"\")","v":""}]
[null,null,null,null,null,null,null,null,null,null,null,{"$f":"IFERROR(VLOOKUP(K187,Catégories!$B$3:$D$7,2,FALSE),\"\")","v":""},null,null,null,null,null,null,"0h00min00s",null,{"$f":"IFERROR(IF(T187>VLOOKUP(K187,Catégories!$B$3:$D$7,3,FALSE),\"Attention\",\"OK\"),\"\")","v":""}]
[null,null,null,null,null,null,null,null,null,null,null,{"$f":"IFERROR(VLOOKUP(K188,Catégories!$B$3:$D$7,2,FALSE),\"\")","v":""},null,null,null,null,null,null,"0h00min00s",null,{"$f":"IFERROR(IF(T188>VLOOKUP(K188,Catégories!$B$3:$D$7,3,FALSE),\"Attention\",\"OK\"),\"\")","v":""}]
[null,null,null,null,null,null,null,null,null,null,null,{"$f":"IFERROR(VLOOKUP(K189,Catégories!$B$3:$D$7,2,FALSE),\"\")","v":""},null,null,null,null,null,null,"0h00min00s",null,{"$f":"IFERROR(IF(T189>VLOOKUP(K189,Catégories!$B$3:$D$7,3,FALSE),\"Attention\",\"OK\"),\"\")","v":""}]
[null,null,null,null,null,null,null,null,null,null,null,{"$f":"IFERROR(VLOOKUP(K190,Catégories!$B$3:$D$7,2,FALSE),\"\")","v":""},null,null,null,null,null,null,"0h00min00s",null,{"$f":"IFERROR(IF(T190>VLOOKUP(K190,Catégories!$B$3:$D$7,3,FALSE),\"Attention\",\"OK\"),\"\")","v":""}]
[null,null,null,null,null,null,null,null,null,null,null,{"$f":"IFERROR(VLOOKUP(K191,Catégories!$B$3:$D$7,2,FALSE),\"\")","v":""},null,null,null,null,null,null,"0h00min00s",null,{"$f":"IFERROR(IF(T191>VLOOKUP(K191,Catégories!$B$3:$D$7,3,FALSE),\"Attention\",\"OK\"),\"\")","v":""}]
[null,null,null,null,null,null,null,null,null,null,null,{"$f":"IFERROR(VLOOKUP(K192,Catégories!$B$3:$D$7,2,FALSE),\"\")","v":""},null,null,null,null,null,null,"0h00min00s",null,{"$f":"IFERROR(IF(T192>VLOOKUP(K192,Catégories!$B$3:$D$7,3,FALSE),\"Attention\",\"OK\"),\"\")","v":""}]
[null,null,null,null,null,null,null,null,null,null,null,{"$f":"IFERROR(VLOOKUP(K193,Catégories!$B$3:$D$7,2,FALSE),\"\")","v":""},null,null,null,null,null,null,"0h00min00s",null,{"$f":"IFERROR(IF(T193>VLOOKUP(K193,Catégories!$B$3:$D$7,3,FALSE),\"Attention\",\"OK\"),\"\")","v":""}]
[null,null,null,null,null,null,null,null,null,null,null,{"$f":"IFERROR(VLOOKUP(K194,Catégories!$B$3:$D$7,2,FALSE),\"\")","v":""},null,null,null,null,null,null,"0h00min00s",null,{"$f":"IFERROR(IF(T194>VLOOKUP(K194,Catégories!$B$3:$D$7,3,FALSE),\"Attention\",\"OK\"),\"\")","v":""}]
[null,null,null,null,null,null,null,null,null,null,null,{"$f":"IFERROR(VLOOKUP(K195,Catégories!$B$3:$D$7,2,FALSE),\"\")","v":""},null,null,null,null,null,null,"0h00min00s",null,{"$f":"IFERROR(IF(T195>VLOOKUP(K195,Catégories!$B$3:$D$7,3,FALSE),\"Attention\",\"OK\"),\"\")","v":""}]
[null,null,null,null,null,null,null,null,null,null,null,{"$f":"IFERROR(VLOOKUP(K196,Catégories!$B$3:$D$7,2,FALSE),\"\")","v":""},null,null,null,null,null,null,"0h00min00s",null,{"$f":"IFERROR(IF(T196>VLOOKUP(K196,Catégories!$B$3:$D$7,3,FALSE),\"Attention\",\"OK\"),\"\")","v":""}]
[null,null,null,null,null,null,null,null,null,null,null,{"$f":"IFERROR(VLOOKUP(K197,Catégories!$B$3:$D$7,2,FALSE),\"\")","v":""},null,null,null,null,null,null,"0h00min00s",null,{"$f":"IFERROR(IF(T197>VLOOKUP(K197,Catégories!$B$3:$D$7,3,FALSE),\"Attention\",\"OK\"),\"\")","v":""}]
[null,null,null,null,null,null,null,null,null,null,null,{"$f":"IFERROR(VLOOKUP(K198,Catégories!$B$3:$D$7,2,FALSE),\"\")","v":""},null,null,null,null,null,null,"0h00min00s",null,{"$f":"IFERROR(IF(T198>VLOOKUP(K198,Catégories!$B$3:$D$7,3,FALSE),\"Attention\",\"OK\"),\"\")","v":""}]
[null,null,null,null,null,null,null,null,null,null,null,{"$f":"IFERROR(VLOOKUP(K199,Catégories!$B$3:$D$7,2,FALSE),\"\")","v":""},null,null,null,null,null,null,"0h00min00s",null,{"$f":"IFERROR(IF(T199>VLOOKUP(K199,Catégories!$B$3:$D$7,3,FALSE),\"Attention\",\"OK\"),\"\")","v":""}]
[null,null,null,null,null,null,null,null,null,null,null,{"$f":"IFERROR(VLOOKUP(K200,Catégories!$B$3:$D$7,2,FALSE),\"\")","v":""},null,null,null,null,null,null,"0h00min00s",null,{"$f":"IFERROR(IF(T200>VLOOKUP(K200,Catégories!$B$3:$D$7,3,FALSE),\"Attention\",\"OK\"),\"\")","v":""}]
[null,null,null,null,null,null,null,null,null,null,null,{"$f":"IFERROR(VLOOKUP(K201,Catégories!$B$3:$D$7,2,FALSE),\"\")","v":""},null,null,null,null,null,null,"0h00min00s",null,{"$f":"IFERROR(IF(T201>VLOOKUP(K201,Catégories!$B$3:$D$7,3,FALSE),\"Attention\",\"OK\"),\"\")","v":""}]
[null,null,null,null,null,null,null,null,null,null,null,{"$f":"IFERROR(VLOOKUP(K202,Catégories!$B$3:$D$7,2,FALSE),\"\")","v":""},null,null,null,null,null,null,"0h00min00s",null,{"$f":"IFERROR(IF(T202>VLOOKUP(K202,Catégories!$B$3:$D$7,3,FALSE),\"Attention\",\"OK\"),\"\")","v":""}]
[null,null,null,null,null,null,null,null,null,null,null,{"$f":"IFERROR(VLOOKUP(K203,Catégories!$B$3:$D$7,2,FALSE),\"\")","v":""},null,null,null,null,null,null,{"$f":"transforme_seconde((P203-M203)*3600+(Q203-N203)*60+(R203-O203))","v":"0h00min00s"},null,{"$f":"IFERROR(IF(T203>VLOOKUP(K203,Catégories!$B$3:$D$7,3,FALSE),\"Attention\",\"OK\"),\"\")","v":""}]
[null,null,null,null,null,null,null,null,null,null,null,{"$f":"IFERROR(VLOOKUP(K204,Catégories!$B$3:$D$7,2,FALSE),\"\")","v":""},null,null,null,null,null,null,"0h00min00s",null,{"$f":"IFERROR(IF(T204>VLOOKUP(K204,Catégories!$B$3:$D$7,3,FALSE),\"Attention\",\"OK\"),\"\")","v":""}]
[null,null,null,null,null,null,null,null,null,null,null,{"$f":"IFERROR(VLOOKUP(K205,Catégories!$B$3:$D$7,2,FALSE),\"\")","v":""},null,null,null,null,null,null,"0h00min00s",null,{"$f":"IFERROR(IF(T205>VLOOKUP(K205,Catégories!$B$3:$D$7,3,FALSE),\"Attention\",\"OK\"),\"\")","v":""}]
[null,null,null,null,null,null,null,null,null,null,null,{"$f":"IFERROR(VLOOKUP(K206,Catégories!$B$3:$D$7,2,FALSE),\"\")","v":""},null,null,null,null,null,null,"0h00min00s",null,{"$f":"IFERROR(IF(T206>VLOOKUP(K206,Catégories!$B$3:$D$7,3,FALSE),\"Attention\",\"OK\"),\"\")","v":""}]
[null,null,null,null,null,null,null,null,null,null,null,{"$f":"IFERROR(VLOOKUP(K207,Catégories!$B$3:$D$7,2,FALSE),\"\")","v":""},null,null,null,null,null,null,"0h00min00s",null,{"$f":"IFERROR(IF(T207>VLOOKUP(K207,Catégories!$B$3:$D$7,3,FALSE),\"Attention\",\"OK\"),\"\")","v":""}]
[null,null,null,null,null,null,null,null,null,null,null,{"$f":"IFERROR(VLOOKUP(K208,Catégories!$B$3:$D$7,2,FALSE),\"\")","v":""},null,null,null,null,null,null,"0h00min00s",null,{"$f":"IFERROR(IF(T208>VLOOKUP(K208,Catégories!$B$3:$D$7,3,FALSE),\"Attention\",\"OK\"),\"\")","v":""}]
[null,null,null,null,null,null,null,null,null,null,null,{"$f":"IFERROR(VLOOKUP(K209,Catégories!$B$3:$D$7,2,FALSE),\"\")","v":""},null,null,null,null,null,null,"0h00min00s",null,{"$f":"IFERROR(IF(T209>VLOOKUP(K209,Catégories!$B$3:$D$7,3,FALSE),\"Attention\",\"OK\"),\"\")","v":""}]
[null,null,null,null,null,null,null,null,null,null,null,{"$f":"IFERROR(VLOOKUP(K210,Catégories!$B$3:$D$7,2,FALSE),\"\")","v":""},null,null,null,null,null,null,"0h00min00s",null,{"$f":"IFERROR(IF(T210>VLOOKUP(K210,Catégories!$B$3:$D$7,3,FALSE),\"Attention\",\"OK\"),\"\")","v":""}]
[null,null,null,null,null,null,null,null,null,null,null,{"$f":"IFERROR(VLOOKUP(K211,Catégories!$B$3:$D$7,2,FALSE),\"\")","v":""},null,null,null,null,null,null,"0h00min00s",null,{"$f":"IFERROR(IF(T211>VLOOKUP(K211,Catégories!$B$3:$D$7,3,FALSE),\"Attention\",\"OK\"),\"\")","v":""}]
[null,null,null,null,null,null,null,null,null,null,null,{"$f":"IFERROR(VLOOKUP(K212,Catégories!$B$3:$D$7,2,FALSE),\"\")","v":""},null,null,null,null,null,null,"0h00min00s",null,{"$f":"IFERROR(IF(T212>VLOOKUP(K212,Catégories!$B$3:$D$7,3,FALSE),\"Attention\",\"OK\"),\"\")","v":""}]
[null,null,null,null,null,null,null,null,null,null,null,{"$f":"IFERROR(VLOOKUP(K213,Catégories!$B$3:$D$7,2,FALSE),\"\")","v":""},null,null,null,null,null,null,"0h00min00s",null,{"$f":"IFERROR(IF(T213>VLOOKUP(K213,Catégories!$B$3:$D$7,3,FALSE),\"Attention\",\"OK\"),\"\")","v":""}]
[null,null,null,null,null,null,null,null,null,null,null,{"$f":"IFERROR(VLOOKUP(K214,Catégories!$B$3:$D$7,2,FALSE),\"\")","v":""},null,null,null,null,null,null,"0h00min00s",null,{"$f":"IFERROR(IF(T214>VLOOKUP(K214,Catégories!$B$3:$D$7,3,FALSE),\"Attention\",\"OK\"),\"\")","v":""}]
[null,null,null,null,null,null,null,null,null,null,null,{"$f":"IFERROR(VLOOKUP(K215,Catégories!$B$3:$D$7,2,FALSE),\"\")","v":""},null,null,null,null,null,null,"0h00min00s",null,{"$f":"IFERROR(IF(T215>VLOOKUP(K215,Catégories!$B$3:$D$7,3,FALSE),\"Attention\",\"OK\"),\"\")","v":""}]
[null,null,null,null,null,null,null,null,null,null,null,{"$f":"IFERROR(VLOOKUP(K216,Catégories!$B$3:$D$7,2,FALSE),\"\")","v":""},null,null,null,null,null,null,"0h00min00s",null,{"$f":"IFERROR(IF(T216>VLOOKUP(K216,Catégories!$B$3:$D$7,3,FALSE),\"Attention\",\"OK\"),\"\")","v":""}]
[null,null,null,null,null,null,null,null,null,null,null,{"$f":"IFERROR(VLOOKUP(K217,Catégories!$B$3:$D$7,2,FALSE),\"\")","v":""},null,null,null,null,null,null,"0h00min00s",null,{"$f":"IFERROR(IF(T217>VLOOKUP(K217,Catégories!$B$3:$D$7,3,FALSE),\"Attention\",\"OK\"),\"\")","v":""}]
[null,null,null,null,null,null,null,null,null,null,null,{"$f":"IFERROR(VLOOKUP(K218,Catégories!$B$3:$D$7,2,FALSE),\"\")","v":""},null,null,null,null,null,null,"0h00min00s",null,{"$f":"IFERROR(IF(T218>VLOOKUP(K218,Catégories!$B$3:$D$7,3,FALSE),\"Attention\",\"OK\"),\"\")","v":""}]
[null,null,null,null,null,null,null,null,null,null,null,{"$f":"IFERROR(VLOOKUP(K219,Catégories!$B$3:$D$7,2,FALSE),\"\")","v":""},null,null,null,null,null,null,"0h00min00s",null,{"$f":"IFERROR(IF(T219>VLOOKUP(K219,Catégories!$B$3:$D$7,3,FALSE),\"Attention\",\"OK\"),\"\")","v":""}]
[null,null,null,null,null,null,null,null,null,null,null,{"$f":"IFERROR(VLOOKUP(K220,Catégories!$B$3:$D$7,2,FALSE),\"\")","v":""},null,null,null,null,null,null,"0h00min00s",null,{"$f":"IFERROR(IF(T220>VLOOKUP(K220,Catégories!$B$3:$D$7,3,FALSE),\"Attention\",\"OK\"),\"\")","v":""}]
[null,null,null,null,null,null,null,null,null,null,null,{"$f":"IFERROR(VLOOKUP(K221,Catégories!$B$3:$D$7,2,FALSE),\"\")","v":""},null,null,null,null,null,null,"0h00min00s",null,{"$f":"IFERROR(IF(T221>VLOOKUP(K221,Catégories!$B$3:$D$7,3,FALSE),\"Attention\",\"OK\"),\"\")","v":""}]
[null,null,null,null,null,null,null,null,null,null,null,{"$f":"IFERROR(VLOOKUP(K222,Catégories!$B$3:$D$7,2,FALSE),\"\")","v":""},null,null,null,null,null,null,"0h00min00s",null,{"$f":"IFERROR(IF(T222>VLOOKUP(K222,Catégories!$B$3:$D$7,3,FALSE),\"Attention\",\"OK\"),\"\")","v":""}]
[null,null,null,null,null,null,null,null,null,null,null,{"$f":"IFERROR(VLOOKUP(K223,Catégories!$B$3:$D$7,2,FALSE),\"\")","v":""},null,null,null,null,null,null,"0h00min00s",null,{"$f":"IFERROR(IF(T223>VLOOKUP(K223,Catégories!$B$3:$D$7,3,FALSE),\"Attention\",\"OK\"),\"\")","v":""}]
[null,null,null,null,null,null,null,null,null,null,null,{"$f":"IFERROR(VLOOKUP(K224,Catégories!$B$3:$D$7,2,FALSE),\"\")","v":""},null,null,null,null,null,null,"0h00min00s",null,{"$f":"IFERROR(IF(T224>VLOOKUP(K224,Catégories!$B$3:$D$7,3,FALSE),\"Attention\",\"OK\"),\"\")","v":""}]
[null,null,null,null,null,null,null,null,null,null,null,{"$f":"IFERROR(VLOOKUP(K225,Catégories!$B$3:$D$7,2,FALSE),\"\")","v":""},null,null,null,null,null,null,"0h00min00s",null,{"$f":"IFERROR(IF(T225>VLOOKUP(K225,Catégories!$B$3:$D$7,3,FALSE),\"Attention\",\"OK\"),\"\")","v":""}]
[null,null,null,null,null,null,null,null,null,null,null,{"$f":"IFERROR(VLOOKUP(K226,Catégories!$B$3:$D$7,2,FALSE),\"\")","v":""},null,null,null,null,null,null,"0h00min00s",null,{"$f":"IFERROR(IF(T226>VLOOKUP(K226,Catégories!$B$3:$D$7,3,FALSE),\"Attention\",\"OK\"),\"\")","v":""}]
[null,null,null,null,null,null,null,null,null,null,null,{"$f":"IFERROR(VLOOKUP(K227,Catégories!$B$3:$D$7,2,FALSE),\"\")","v":""},null,null,null,null,null,null,"0h00min00s",null,{"$f":"IFERROR(IF(T227>VLOOKUP(K227,Catégories!$B$3:$D$7,3,FALSE),\"Attention\",\"OK\"),\"\")","v":""}]
[null,null,null,null,null,null,null,null,null,null,null,{"$f":"IFERROR(VLOOKUP(K228,Catégories!$B$3:$D$7,2,FALSE),\"\")","v":""},null,null,null,null,null,null,"0h00min00s",null,{"$f":"IFERROR(IF(T228>VLOOKUP(K228,Catégories!$B$3:$D$7,3,FALSE),\"Attention\",\"OK\"),\"\")","v":""}]
[null,null,null,null,null,null,null,null,null,null,null,{"$f":"IFERROR(VLOOKUP(K229,Catégories!$B$3:$D$7,2,FALSE),\"\")","v":""},null,null,null,null,null,null,"0h00min00s",null,{"$f":"IFERROR(IF(T229>VLOOKUP(K229,Catégories!$B$3:$D$7,3,FALSE),\"Attention\",\"OK\"),\"\")","v":""}]
[null,null,null,null,null,null,null,null,null,null,null,{"$f":"IFERROR(VLOOKUP(K230,Catégories!$B$3:$D$7,2,FALSE),\"\")","v":""},null,null,null,null,null,null,"0h00min00s",null,{"$f":"IFERROR(IF(T230>VLOOKUP(K230,Catégories!$B$3:$D$7,3,FALSE),\"Attention\",\"OK\"),\"\")","v":""}]
[null,null,null,"Fin des données"]

{"sheet":"BENJAMIN FILLES","index":2,"n_rows":64,"n_cols":21,"rows_kept":64,"cut":false,"hidden":false,"merged":[[8,3,8,9],[8,10,8,13],[8,14,8,19],[9,10,9,11],[9,12,9,14],[9,15,9,17]]}
[]
[]
[]
[]
[]
[]
[]
[]
[null,null,null,"Course d'Orientation",null,null,null,null,null,null,"CLASSEMENT :",null,null,null,"BENJAMIN FILLES"]
[null,null,null,"N°équipe","Nom1","Prénom1","Établissement 1","Nom2","Prénom2","Établissement 2","Catégorie",null,"Tps de départ",null,null,"Tps d'arrivée",null,null,"Tps de parcours","Nb balises","Vérif balise"]
[null,null,null,null,null,null,null,null,null,null,null,{"$f":"IFERROR(VLOOKUP(K11,Catégories!$B$3:$D$7,2,FALSE),\"\")","v":""},4,null,null,6,null,null,{"$f":"transforme_seconde((P11-M11)*3600+(Q11-N11)*60+(R11-O11))","v":"2h00min00s"},8,{"$f":"IFERROR(IF(T11>VLOOKUP(K11,Catégories!$B$3:$D$7,3,FALSE),\"Attention\",\"OK\"),\"\")","v":""}]
[null,null,null,null,null,null,null,null,null,null,null,{"$f":"IFERROR(VLOOKUP(K12,Catégories!$B$3:$D$7,2,FALSE),\"\")","v":""},2,null,null,5,null,null,"3h00min00s",7,{"$f":"IFERROR(IF(T12>VLOOKUP(K12,Catégories!$B$3:$D$7,3,FALSE),\"Attention\",\"OK\"),\"\")","v":""}]
[null,null,null,null,null,null,null,null,null,null,null,{"$f":"IFERROR(VLOOKUP(K13,Catégories!$B$3:$D$7,2,FALSE),\"\")","v":""},null,null,null,null,null,null,"0h00min00s",null,{"$f":"IFERROR(IF(T13>VLOOKUP(K13,Catégories!$B$3:$D$7,3,FALSE),\"Attention\",\"OK\"),\"\")","v":""}]
[null,null,null,null,null,null,null,null,null,null,null,{"$f":"IFERROR(VLOOKUP(K14,Catégories!$B$3:$D$7,2,FALSE),\"\")","v":""},null,null,null,null,null,null,"0h00min00s",null,{"$f":"IFERROR(IF(T14>VLOOKUP(K14,Catégories!$B$3:$D$7,3,FALSE),\"Attention\",\"OK\"),\"\")","v":""}]
[null,null,null,null,null,null,null,null,null,null,null,{"$f":"IFERROR(VLOOKUP(K15,Catégories!$B$3:$D$7,2,FALSE),\"\")","v":""},null,null,null,null,null,null,"0h00min00s",null,{"$f":"IFERROR(IF(T15>VLOOKUP(K15,Catégories!$B$3:$D$7,3,FALSE),\"Attention\",\"OK\"),\"\")","v":""}]
[null,null,null,null,null,null,null,null,null,null,null,{"$f":"IFERROR(VLOOKUP(K16,Catégories!$B$3:$D$7,2,FALSE),\"\")","v":""},null,null,null,null,null,null,"0h00min00s",null,{"$f":"IFERROR(IF(T16>VLOOKUP(K16,Catégories!$B$3:$D$7,3,FALSE),\"Attention\",\"OK\"),\"\")","v":""}]
[null,null,null,null,null,null,null,null,null,null,null,{"$f":"IFERROR(VLOOKUP(K17,Catégories!$B$3:$D$7,2,FALSE),\"\")","v":""},null,null,null,null,null,null,"0h00min00s",null,{"$f":"IFERROR(IF(T17>VLOOKUP(K17,Catégories!$B$3:$D$7,3,FALSE),\"Attention\",\"OK\"),\"\")","v":""}]
[null,null,null,null,null,null,null,null,null,null,null,{"$f":"IFERROR(VLOOKUP(K18,Catégories!$B$3:$D$7,2,FALSE),\"\")","v":""},null,null,null,null,null,null,"0h00min00s",null,{"$f":"IFERROR(IF(T18>VLOOKUP(K18,Catégories!$B$3:$D$7,3,FALSE),\"Attention\",\"OK\"),\"\")","v":""}]
[null,null,null,null,null,null,null,null,null,null,null,{"$f":"IFERROR(VLOOKUP(K19,Catégories!$B$3:$D$7,2,FALSE),\"\")","v":""},null,null,null,null,null,null,"0h00min00s",null,{"$f":"IFERROR(IF(T19>VLOOKUP(K19,Catégories!$B$3:$D$7,3,FALSE),\"Attention\",\"OK\"),\"\")","v":""}]
[null,null,null,null,null,null,null,null,null,null,null,{"$f":"IFERROR(VLOOKUP(K20,Catégories!$B$3:$D$7,2,FALSE),\"\")","v":""},null,null,null,null,null,null,"0h00min00s",null,{"$f":"IFERROR(IF(T20>VLOOKUP(K20,Catégories!$B$3:$D$7,3,FALSE),\"Attention\",\"OK\"),\"\")","v":""}]
[null,null,null,null,null,null,null,null,null,null,null,{"$f":"IFERROR(VLOOKUP(K21,Catégories!$B$3:$D$7,2,FALSE),\"\")","v":""},null,null,null,null,null,null,"0h00min00s",null,{"$f":"IFERROR(IF(T21>VLOOKUP(K21,Catégories!$B$3:$D$7,3,FALSE),\"Attention\",\"OK\"),\"\")","v":""}]
[null,null,null,null,null,null,null,null,null,null,null,{"$f":"IFERROR(VLOOKUP(K22,Catégories!$B$3:$D$7,2,FALSE),\"\")","v":""},null,null,null,null,null,null,"0h00min00s",null,{"$f":"IFERROR(IF(T22>VLOOKUP(K22,Catégories!$B$3:$D$7,3,FALSE),\"Attention\",\"OK\"),\"\")","v":""}]
[null,null,null,null,null,null,null,null,null,null,null,{"$f":"IFERROR(VLOOKUP(K23,Catégories!$B$3:$D$7,2,FALSE),\"\")","v":""},null,null,null,null,null,null,"0h00min00s",null,{"$f":"IFERROR(IF(T23>VLOOKUP(K23,Catégories!$B$3:$D$7,3,FALSE),\"Attention\",\"OK\"),\"\")","v":""}]
[null,null,null,null,null,null,null,null,null,null,null,{"$f":"IFERROR(VLOOKUP(K24,Catégories!$B$3:$D$7,2,FALSE),\"\")","v":""},null,null,null,null,null,null,"0h00min00s",null,{"$f":"IFERROR(IF(T24>VLOOKUP(K24,Catégories!$B$3:$D$7,3,FALSE),\"Attention\",\"OK\"),\"\")","v":""}]
[null,null,null,null,null,null,null,null,null,null,null,{"$f":"IFERROR(VLOOKUP(K25,Catégories!$B$3:$D$7,2,FALSE),\"\")","v":""},null,null,null,null,null,null,"0h00min00s",null,{"$f":"IFERROR(IF(T25>VLOOKUP(K25,Catégories!$B$3:$D$7,3,FALSE),\"Attention\",\"OK\"),\"\")","v":""}]
[null,null,null,null,null,null,null,null,null,null,null,{"$f":"IFERROR(VLOOKUP(K26,Catégories!$B$3:$D$7,2,FALSE),\"\")","v":""},null,null,null,null,null,null,"0h00min00s",null,{"$f":"IFERROR(IF(T26>VLOOKUP(K26,Catégories!$B$3:$D$7,3,FALSE),\"Attention\",\"OK\"),\"\")","v":""}]
[null,null,null,null,null,null,null,null,null,null,null,{"$f":"IFERROR(VLOOKUP(K27,Catégories!$B$3:$D$7,2,FALSE),\"\")","v":""},null,null,null,null,null,null,"0h00min00s",null,{"$f":"IFERROR(IF(T27>VLOOKUP(K27,Catégories!$B$3:$D$7,3,FALSE),\"Attention\",\"OK\"),\"\")","v":""}]
[null,null,null,null,null,null,null,null,null,null,null,{"$f":"IFERROR(VLOOKUP(K28,Catégories!$B$3:$D$7,2,FALSE),\"\")","v":""},null,null,null,null,null,null,"0h00min00s",null,{"$f":"IFERROR(IF(T28>VLOOKUP(K28,Catégories!$B$3:$D$7,3,FALSE),\"Attention\",\"OK\"),\"\")","v":""}]
[null,null,null,null,null,null,null,null,null,null,null,{"$f":"IFERROR(VLOOKUP(K29,Catégories!$B$3:$D$7,2,FALSE),\"\")","v":""},null,null,null,null,null,null,"0h00min00s",null,{"$f":"IFERROR(IF(T29>VLOOKUP(K29,Catégories!$B$3:$D$7,3,FALSE),\"Attention\",\"OK\"),\"\")","v":""}]
[null,null,null,null,null,null,null,null,null,null,null,{"$f":"IFERROR(VLOOKUP(K30,Catégories!$B$3:$D$7,2,FALSE),\"\")","v":""},null,null,null,null,null,null,"0h00min00s",null,{"$f":"IFERROR(IF(T30>VLOOKUP(K30,Catégories!$B$3:$D$7,3,FALSE),\"Attention\",\"OK\"),\"\")","v":""}]
[null,null,null,null,null,null,null,null,null,null,null,{"$f":"IFERROR(VLOOKUP(K31,Catégories!$B$3:$D$7,2,FALSE),\"\")","v":""},null,null,null,null,null,null,"0h00min00s",null,{"$f":"IFERROR(IF(T31>VLOOKUP(K31,Catégories!$B$3:$D$7,3,FALSE),\"Attention\",\"OK\"),\"\")","v":""}]
[null,null,null,null,null,null,null,null,null,null,null,{"$f":"IFERROR(VLOOKUP(K32,Catégories!$B$3:$D$7,2,FALSE),\"\")","v":""},null,null,null,null,null,null,"0h00min00s",null,{"$f":"IFERROR(IF(T32>VLOOKUP(K32,Catégories!$B$3:$D$7,3,FALSE),\"Attention\",\"OK\"),\"\")","v":""}]
[null,null,null,null,null,null,null,null,null,null,null,{"$f":"IFERROR(VLOOKUP(K33,Catégories!$B$3:$D$7,2,FALSE),\"\")","v":""},null,null,null,null,null,null,"0h00min00s",null,{"$f":"IFERROR(IF(T33>VLOOKUP(K33,Catégories!$B$3:$D$7,3,FALSE),\"Attention\",\"OK\"),\"\")","v":""}]
[null,null,null,null,null,null,null,null,null,null,null,{"$f":"IFERROR(VLOOKUP(K34,Catégories!$B$3:$D$7,2,FALSE),\"\")","v":""},null,null,null,null,null,null,"0h00min00s",null,{"$f":"IFERROR(IF(T34>VLOOKUP(K34,Catégories!$B$3:$D$7,3,FALSE),\"Attention\",\"OK\"),\"\")","v":""}]
[null,null,null,null,null,null,null,null,null,null,null,{"$f":"IFERROR(VLOOKUP(K35,Catégories!$B$3:$D$7,2,FALSE),\"\")","v":""},null,null,null,null,null,null,"0h00min00s",null,{"$f":"IFERROR(IF(T35>VLOOKUP(K35,Catégories!$B$3:$D$7,3,FALSE),\"Attention\",\"OK\"),\"\")","v":""}]
[null,null,null,null,null,null,null,null,null,null,null,{"$f":"IFERROR(VLOOKUP(K36,Catégories!$B$3:$D$7,2,FALSE),\"\")","v":""},null,null,null,null,null,null,"0h00min00s",null,{"$f":"IFERROR(IF(T36>VLOOKUP(K36,Catégories!$B$3:$D$7,3,FALSE),\"Attention\",\"OK\"),\"\")","v":""}]
[null,null,null,null,null,null,null,null,null,null,null,{"$f":"IFERROR(VLOOKUP(K37,Catégories!$B$3:$D$7,2,FALSE),\"\")","v":""},null,null,null,null,null,null,"0h00min00s",null,{"$f":"IFERROR(IF(T37>VLOOKUP(K37,Catégories!$B$3:$D$7,3,FALSE),\"Attention\",\"OK\"),\"\")","v":""}]
[null,null,null,null,null,null,null,null,null,null,null,{"$f":"IFERROR(VLOOKUP(K38,Catégories!$B$3:$D$7,2,FALSE),\"\")","v":""},null,null,null,null,null,null,"0h00min00s",null,{"$f":"IFERROR(IF(T38>VLOOKUP(K38,Catégories!$B$3:$D$7,3,FALSE),\"Attention\",\"OK\"),\"\")","v":""}]
[null,null,null,null,null,null,null,null,null,null,null,{"$f":"IFERROR(VLOOKUP(K39,Catégories!$B$3:$D$7,2,FALSE),\"\")","v":""},null,null,null,null,null,null,"0h00min00s",null,{"$f":"IFERROR(IF(T39>VLOOKUP(K39,Catégories!$B$3:$D$7,3,FALSE),\"Attention\",\"OK\"),\"\")","v":""}]
[null,null,null,null,null,null,null,null,null,null,null,{"$f":"IFERROR(VLOOKUP(K40,Catégories!$B$3:$D$7,2,FALSE),\"\")","v":""},null,null,null,null,null,null,"0h00min00s",null,{"$f":"IFERROR(IF(T40>VLOOKUP(K40,Catégories!$B$3:$D$7,3,FALSE),\"Attention\",\"OK\"),\"\")","v":""}]
[null,null,null,null,null,null,null,null,null,null,null,{"$f":"IFERROR(VLOOKUP(K41,Catégories!$B$3:$D$7,2,FALSE),\"\")","v":""},null,null,null,null,null,null,"0h00min00s",null,{"$f":"IFERROR(IF(T41>VLOOKUP(K41,Catégories!$B$3:$D$7,3,FALSE),\"Attention\",\"OK\"),\"\")","v":""}]
[null,null,null,null,null,null,null,null,null,null,null,{"$f":"IFERROR(VLOOKUP(K42,Catégories!$B$3:$D$7,2,FALSE),\"\")","v":""},null,null,null,null,null,null,"0h00min00s",null,{"$f":"IFERROR(IF(T42>VLOOKUP(K42,Catégories!$B$3:$D$7,3,FALSE),\"Attention\",\"OK\"),\"\")","v":""}]
[null,null,null,null,null,null,null,null,null,null,null,{"$f":"IFERROR(VLOOKUP(K43,Catégories!$B$3:$D$7,2,FALSE),\"\")","v":""},null,null,null,null,null,null,{"$f":"transforme_seconde((P43-M43)*3600+(Q43-N43)*60+(R43-O43))","v":"0h00min00s"},null,{"$f":"IFERROR(IF(T43>VLOOKUP(K43,Catégories!$B$3:$D$7,3,FALSE),\"Attention\",\"OK\"),\"\")","v":""}]
[null,null,null,null,null,null,null,null,null,null,null,{"$f":"IFERROR(VLOOKUP(K44,Catégories!$B$3:$D$7,2,FALSE),\"\")","v":""},null,null,null,null,null,null,"0h00min00s",null,{"$f":"IFERROR(IF(T44>VLOOKUP(K44,Catégories!$B$3:$D$7,3,FALSE),\"Attention\",\"OK\"),\"\")","v":""}]
[null,null,null,null,null,null,null,null,null,null,null,{"$f":"IFERROR(VLOOKUP(K45,Catégories!$B$3:$D$7,2,FALSE),\"\")","v":""},null,null,null,null,null,null,"0h00min00s",null,{"$f":"IFERROR(IF(T45>VLOOKUP(K45,Catégories!$B$3:$D$7,3,FALSE),\"Attention\",\"OK\"),\"\")","v":""}]
[null,null,null,null,null,null,null,null,null,null,null,{"$f":"IFERROR(VLOOKUP(K46,Catégories!$B$3:$D$7,2,FALSE),\"\")","v":""},null,null,null,null,null,null,"0h00min00s",null,{"$f":"IFERROR(IF(T46>VLOOKUP(K46,Catégories!$B$3:$D$7,3,FALSE),\"Attention\",\"OK\"),\"\")","v":""}]
[null,null,null,null,null,null,null,null,null,null,null,{"$f":"IFERROR(VLOOKUP(K47,Catégories!$B$3:$D$7,2,FALSE),\"\")","v":""},null,null,null,null,null,null,"0h00min00s",null,{"$f":"IFERROR(IF(T47>VLOOKUP(K47,Catégories!$B$3:$D$7,3,FALSE),\"Attention\",\"OK\"),\"\")","v":""}]
[null,null,null,null,null,null,null,null,null,null,null,{"$f":"IFERROR(VLOOKUP(K48,Catégories!$B$3:$D$7,2,FALSE),\"\")","v":""},null,null,null,null,null,null,"0h00min00s",null,{"$f":"IFERROR(IF(T48>VLOOKUP(K48,Catégories!$B$3:$D$7,3,FALSE),\"Attention\",\"OK\"),\"\")","v":""}]
[null,null,null,null,null,null,null,null,null,null,null,{"$f":"IFERROR(VLOOKUP(K49,Catégories!$B$3:$D$7,2,FALSE),\"\")","v":""},null,null,null,null,null,null,"0h00min00s",null,{"$f":"IFERROR(IF(T49>VLOOKUP(K49,Catégories!$B$3:$D$7,3,FALSE),\"Attention\",\"OK\"),\"\")","v":""}]
[null,null,null,null,null,null,null,null,null,null,null,{"$f":"IFERROR(VLOOKUP(K50,Catégories!$B$3:$D$7,2,FALSE),\"\")","v":""},null,null,null,null,null,null,"0h00min00s",null,{"$f":"IFERROR(IF(T50>VLOOKUP(K50,Catégories!$B$3:$D$7,3,FALSE),\"Attention\",\"OK\"),\"\")","v":""}]
[null,null,null,null,null,null,null,null,null,null,null,{"$f":"IFERROR(VLOOKUP(K51,Catégories!$B$3:$D$7,2,FALSE),\"\")","v":""},null,null,null,null,null,null,"0h00min00s",null,{"$f":"IFERROR(IF(T51>VLOOKUP(K51,Catégories!$B$3:$D$7,3,FALSE),\"Attention\",\"OK\"),\"\")","v":""}]
[null,null,null,null,null,null,null,null,null,null,null,{"$f":"IFERROR(VLOOKUP(K52,Catégories!$B$3:$D$7,2,FALSE),\"\")","v":""},null,null,null,null,null,null,"0h00min00s",null,{"$f":"IFERROR(IF(T52>VLOOKUP(K52,Catégories!$B$3:$D$7,3,FALSE),\"Attention\",\"OK\"),\"\")","v":""}]
[null,null,null,null,null,null,null,null,null,null,null,{"$f":"IFERROR(VLOOKUP(K53,Catégories!$B$3:$D$7,2,FALSE),\"\")","v":""},null,null,null,null,null,null,"0h00min00s",null,{"$f":"IFERROR(IF(T53>VLOOKUP(K53,Catégories!$B$3:$D$7,3,FALSE),\"Attention\",\"OK\"),\"\")","v":""}]
[null,null,null,null,null,null,null,null,null,null,null,{"$f":"IFERROR(VLOOKUP(K54,Catégories!$B$3:$D$7,2,FALSE),\"\")","v":""},null,null,null,null,null,null,"0h00min00s",null,{"$f":"IFERROR(IF(T54>VLOOKUP(K54,Catégories!$B$3:$D$7,3,FALSE),\"Attention\",\"OK\"),\"\")","v":""}]
[null,null,null,null,null,null,null,null,null,null,null,{"$f":"IFERROR(VLOOKUP(K55,Catégories!$B$3:$D$7,2,FALSE),\"\")","v":""},null,null,null,null,null,null,"0h00min00s",null,{"$f":"IFERROR(IF(T55>VLOOKUP(K55,Catégories!$B$3:$D$7,3,FALSE),\"Attention\",\"OK\"),\"\")","v":""}]
[null,null,null,null,null,null,null,null,null,null,null,{"$f":"IFERROR(VLOOKUP(K56,Catégories!$B$3:$D$7,2,FALSE),\"\")","v":""},null,null,null,null,null,null,"0h00min00s",null,{"$f":"IFERROR(IF(T56>VLOOKUP(K56,Catégories!$B$3:$D$7,3,FALSE),\"Attention\",\"OK\"),\"\")","v":""}]
[null,null,null,null,null,null,null,null,null,null,null,{"$f":"IFERROR(VLOOKUP(K57,Catégories!$B$3:$D$7,2,FALSE),\"\")","v":""},null,null,null,null,null,null,"0h00min00s",null,{"$f":"IFERROR(IF(T57>VLOOKUP(K57,Catégories!$B$3:$D$7,3,FALSE),\"Attention\",\"OK\"),\"\")","v":""}]
[null,null,null,null,null,null,null,null,null,null,null,{"$f":"IFERROR(VLOOKUP(K58,Catégories!$B$3:$D$7,2,FALSE),\"\")","v":""},null,null,null,null,null,null,"0h00min00s",null,{"$f":"IFERROR(IF(T58>VLOOKUP(K58,Catégories!$B$3:$D$7,3,FALSE),\"Attention\",\"OK\"),\"\")","v":""}]
[null,null,null,null,null,null,null,null,null,null,null,{"$f":"IFERROR(VLOOKUP(K59,Catégories!$B$3:$D$7,2,FALSE),\"\")","v":""},null,null,null,null,null,null,"0h00min00s",null,{"$f":"IFERROR(IF(T59>VLOOKUP(K59,Catégories!$B$3:$D$7,3,FALSE),\"Attention\",\"OK\"),\"\")","v":""}]
[null,null,null,null,null,null,null,null,null,null,null,{"$f":"IFERROR(VLOOKUP(K60,Catégories!$B$3:$D$7,2,FALSE),\"\")","v":""},null,null,null,null,null,null,"0h00min00s",null,{"$f":"IFERROR(IF(T60>VLOOKUP(K60,Catégories!$B$3:$D$7,3,FALSE),\"Attention\",\"OK\"),\"\")","v":""}]
[null,null,null,null,null,null,null,null,null,null,null,{"$f":"IFERROR(VLOOKUP(K61,Catégories!$B$3:$D$7,2,FALSE),\"\")","v":""},null,null,null,null,null,null,"0h00min00s",null,{"$f":"IFERROR(IF(T61>VLOOKUP(K61,Catégories!$B$3:$D$7,3,FALSE),\"Attention\",\"OK\"),\"\")","v":""}]
[null,null,null,null,null,null,null,null,null,null,null,{"$f":"IFERROR(VLOOKUP(K62,Catégories!$B$3:$D$7,2,FALSE),\"\")","v":""},null,null,null,null,null,null,"0h00min00s",null,{"$f":"IFERROR(IF(T62>VLOOKUP(K62,Catégories!$B$3:$D$7,3,FALSE),\"Attention\",\"OK\"),\"\")","v":""}]
[null,null,null,null,null,null,null,null,null,null,null,{"$f":"IFERROR(VLOOKUP(K63,Catégories!$B$3:$D$7,2,FALSE),\"\")","v":""},null,null,null,null,null,null,"0h00min00s",null,{"$f":"IFERROR(IF(T63>VLOOKUP(K63,Catégories!$B$3:$D$7,3,FALSE),\"Attention\",\"OK\"),\"\")","v":""}]
[null,null,null,"Fin des données"]

{"sheet":"BENJAMIN GARCONS","index":3,"n_rows":97,"n_cols":21,"rows_kept":97,"cut":false,"hidden":false,"merged":[[8,3,8,9],[8,10,8,13],[8,14,8,19],[9,10,9,11],[9,12,9,14],[9,15,9,17]]}
[]
[]
[]
[]
[]
[]
[]
[]
[null,null,null,"Course d'Orientation",null,null,null,null,null,null,"CLASSEMENT :",null,null,null,"BENJAMIN GARCONS"]
[null,null,null,"N°équipe","Nom1","Prénom1","Établissement 1","Nom2","Prénom2","Établissement 2","Catégorie",null,"Tps de départ",null,null,"Tps d'arrivée",null,null,"Tps de parcours","Nb balises","Vérif balise"]
[null,null,null,68,"OSOUF","Gianni","BAGE LA VILLE",null,null,null,1.2,{"$f":"IFERROR(VLOOKUP(K11,Catégories!$B$3:$D$7,2,FALSE),\"\")","v":"BENJAMIN GARCONS"},5,null,null,9,null,null,{"$f":"transforme_seconde((P11-M11)*3600+(Q11-N11)*60+(R11-O11))","v":"4h00min00s"},8,{"$f":"IFERROR(IF(T11>VLOOKUP(K11,Catégories!$B$3:$D$7,3,FALSE),\"Attention\",\"OK\"),\"\")","v":"OK"}]
[null,null,null,72,"BREVET","Mathias","LEYMENT",null,null,null,1.2,{"$f":"IFERROR(VLOOKUP(K12,Catégories!$B$3:$D$7,2,FALSE),\"\")","v":"BENJAMIN GARCONS"},5,null,null,8,null,null,"3h00min00s",7,{"$f":"IFERROR(IF(T12>VLOOKUP(K12,Catégories!$B$3:$D$7,3,FALSE),\"Attention\",\"OK\"),\"\")","v":"OK"}]
[null,null,null,56,"BADET","Martin","ST-DENIS LES BOURG",null,null,null,1.2,{"$f":"IFERROR(VLOOKUP(K13,Catégories!$B$3:$D$7,2,FALSE),\"\")","v":"BENJAMIN GARCONS"},null,null,null,null,null,null,"0h00min00s",null,{"$f":"IFERROR(IF(T13>VLOOKUP(K13,Catégories!$B$3:$D$7,3,FALSE),\"Attention\",\"OK\"),\"\")","v":"OK"}]
[null,null,null,57,"BERNABEU","Lucas","ST-DENIS LES BOURG",null,null,null,1.2,{"$f":"IFERROR(VLOOKUP(K14,Catégories!$B$3:$D$7,2,FALSE),\"\")","v":"BENJAMIN GARCONS"},null,null,null,null,null,null,"0h00min00s",null,{"$f":"IFERROR(IF(T14>VLOOKUP(K14,Catégories!$B$3:$D$7,3,FALSE),\"Attention\",\"OK\"),\"\")","v":"OK"}]
[null,null,null,58,"BUCILLIAT","Kyliann","ST-DENIS LES BOURG",null,null,null,1.2,{"$f":"IFERROR(VLOOKUP(K15,Catégories!$B$3:$D$7,2,FALSE),\"\")","v":"BENJAMIN GARCONS"},null,null,null,null,null,null,"0h00min00s",null,{"$f":"IFERROR(IF(T15>VLOOKUP(K15,Catégories!$B$3:$D$7,3,FALSE),\"Attention\",\"OK\"),\"\")","v":"OK"}]
[null,null,null,59,"LUCET","Gaetan","ST-DENIS LES BOURG",null,null,null,1.2,{"$f":"IFERROR(VLOOKUP(K16,Catégories!$B$3:$D$7,2,FALSE),\"\")","v":"BENJAMIN GARCONS"},null,null,null,null,null,null,"0h00min00s",null,{"$f":"IFERROR(IF(T16>VLOOKUP(K16,Catégories!$B$3:$D$7,3,FALSE),\"Attention\",\"OK\"),\"\")","v":"OK"}]
[null,null,null,60,"VENET","Loic","ST-DENIS LES BOURG",null,null,null,1.2,{"$f":"IFERROR(VLOOKUP(K17,Catégories!$B$3:$D$7,2,FALSE),\"\")","v":"BENJAMIN GARCONS"},null,null,null,null,null,null,"0h00min00s",null,{"$f":"IFERROR(IF(T17>VLOOKUP(K17,Catégories!$B$3:$D$7,3,FALSE),\"Attention\",\"OK\"),\"\")","v":"OK"}]
[null,null,null,61,"AUGUSTIN","Clement","DIVONNE LES BAINS",null,null,null,1.2,{"$f":"IFERROR(VLOOKUP(K18,Catégories!$B$3:$D$7,2,FALSE),\"\")","v":"BENJAMIN GARCONS"},null,null,null,null,null,null,"0h00min00s",null,{"$f":"IFERROR(IF(T18>VLOOKUP(K18,Catégories!$B$3:$D$7,3,FALSE),\"Attention\",\"OK\"),\"\")","v":"OK"}]
[null,null,null,62,"BASSET","Éliot","BAGE LA VILLE",null,null,null,1.2,{"$f":"IFERROR(VLOOKUP(K19,Catégories!$B$3:$D$7,2,FALSE),\"\")","v":"BENJAMIN GARCONS"},null,null,null,null,null,null,"0h00min00s",null,{"$f":"IFERROR(IF(T19>VLOOKUP(K19,Catégories!$B$3:$D$7,3,FALSE),\"Attention\",\"OK\"),\"\")","v":"OK"}]
[null,null,null,63,"CARNEIRO","Lucien","BAGE LA VILLE",null,null,null,1.2,{"$f":"IFERROR(VLOOKUP(K20,Catégories!$B$3:$D$7,2,FALSE),\"\")","v":"BENJAMIN GARCONS"},null,null,null,null,null,null,"0h00min00s",null,{"$f":"IFERROR(IF(T20>VLOOKUP(K20,Catégories!$B$3:$D$7,3,FALSE),\"Attention\",\"OK\"),\"\")","v":"OK"}]
[null,null,null,64,"COEUR","Maxence","BAGE LA VILLE",null,null,null,1.2,{"$f":"IFERROR(VLOOKUP(K21,Catégories!$B$3:$D$7,2,FALSE),\"\")","v":"BENJAMIN GARCONS"},null,null,null,null,null,null,"0h00min00s",null,{"$f":"IFERROR(IF(T21>VLOOKUP(K21,Catégories!$B$3:$D$7,3,FALSE),\"Attention\",\"OK\"),\"\")","v":"OK"}]
[null,null,null,65,"FERRAND","Hugo","BAGE LA VILLE",null,null,null,1.2,{"$f":"IFERROR(VLOOKUP(K22,Catégories!$B$3:$D$7,2,FALSE),\"\")","v":"BENJAMIN GARCONS"},null,null,null,null,null,null,"0h00min00s",null,{"$f":"IFERROR(IF(T22>VLOOKUP(K22,Catégories!$B$3:$D$7,3,FALSE),\"Attention\",\"OK\"),\"\")","v":"OK"}]
[null,null,null,66,"LEGRAND","Steven","BAGE LA VILLE",null,null,null,1.2,{"$f":"IFERROR(VLOOKUP(K23,Catégories!$B$3:$D$7,2,FALSE),\"\")","v":"BENJAMIN GARCONS"},null,null,null,null,null,null,"0h00min00s",null,{"$f":"IFERROR(IF(T23>VLOOKUP(K23,Catégories!$B$3:$D$7,3,FALSE),\"Attention\",\"OK\"),\"\")","v":"OK"}]
[null,null,null,67,"NAPOLY","Axel","BAGE LA VILLE",null,null,null,1.2,{"$f":"IFERROR(VLOOKUP(K24,Catégories!$B$3:$D$7,2,FALSE),\"\")","v":"BENJAMIN GARCONS"},null,null,null,null,null,null,"0h00min00s",null,{"$f":"IFERROR(IF(T24>VLOOKUP(K24,Catégories!$B$3:$D$7,3,FALSE),\"Attention\",\"OK\"),\"\")","v":"OK"}]
[null,null,null,69,"SOCQUET CLERC","Thomas","BAGE LA VILLE",null,null,null,1.2,{"$f":"IFERROR(VLOOKUP(K25,Catégories!$B$3:$D$7,2,FALSE),\"\")","v":"BENJAMIN GARCONS"},null,null,null,null,null,null,"0h00min00s",null,{"$f":"IFERROR(IF(T25>VLOOKUP(K25,Catégories!$B$3:$D$7,3,FALSE),\"Attention\",\"OK\"),\"\")","v":"OK"}]
[null,null,null,70,"TORRE","Alexandre","BAGE LA VILLE",null,null,null,1.2,{"$f":"IFERROR(VLOOKUP(K26,Catégories!$B$3:$D$7,2,FALSE),\"\")","v":"BENJAMIN GARCONS"},null,null,null,null,null,null,"0h00min00s",null,{"$f":"IFERROR(IF(T26>VLOOKUP(K26,Catégories!$B$3:$D$7,3,FALSE),\"Attention\",\"OK\"),\"\")","v":"OK"}]
[null,null,null,71,"BOUCLIER","Louison","LEYMENT",null,null,null,1.2,{"$f":"IFERROR(VLOOKUP(K27,Catégories!$B$3:$D$7,2,FALSE),\"\")","v":"BENJAMIN GARCONS"},null,null,null,null,null,null,"0h00min00s",null,{"$f":"IFERROR(IF(T27>VLOOKUP(K27,Catégories!$B$3:$D$7,3,FALSE),\"Attention\",\"OK\"),\"\")","v":"OK"}]
[null,null,null,73,"COMBE","Mateo","LEYMENT",null,null,null,1.2,{"$f":"IFERROR(VLOOKUP(K28,Catégories!$B$3:$D$7,2,FALSE),\"\")","v":"BENJAMIN GARCONS"},null,null,null,null,null,null,"0h00min00s",null,{"$f":"IFERROR(IF(T28>VLOOKUP(K28,Catégories!$B$3:$D$7,3,FALSE),\"Attention\",\"OK\"),\"\")","v":"OK"}]
[null,null,null,74,"CORSIN","Dorian","LEYMENT",null,null,null,1.2,{"$f":"IFERROR(VLOOKUP(K29,Catégories!$B$3:$D$7,2,FALSE),\"\")","v":"BENJAMIN GARCONS"},null,null,null,null,null,null,"0h00min00s",null,{"$f":"IFERROR(IF(T29>VLOOKUP(K29,Catégories!$B$3:$D$7,3,FALSE),\"Attention\",\"OK\"),\"\")","v":"OK"}]
[null,null,null,75,"D'ORIO","Lucas","LEYMENT",null,null,null,1.2,{"$f":"IFERROR(VLOOKUP(K30,Catégories!$B$3:$D$7,2,FALSE),\"\")","v":"BENJAMIN GARCONS"},null,null,null,null,null,null,"0h00min00s",null,{"$f":"IFERROR(IF(T30>VLOOKUP(K30,Catégories!$B$3:$D$7,3,FALSE),\"Attention\",\"OK\"),\"\")","v":"OK"}]
[null,null,null,76,"FEITOSA MARTINS","Mattéo","LEYMENT",null,null,null,1.2,{"$f":"IFERROR(VLOOKUP(K31,Catégories!$B$3:$D$7,2,FALSE),\"\")","v":"BENJAMIN GARCONS"},null,null,null,null,null,null,"0h00min00s",null,{"$f":"IFERROR(IF(T31>VLOOKUP(K31,Catégories!$B$3:$D$7,3,FALSE),\"Attention\",\"OK\"),\"\")","v":"OK"}]
[null,null,null,77,"GOUAILLE","Dylan","LEYMENT",null,null,null,1.2,{"$f":"IFERROR(VLOOKUP(K32,Catégories!$B$3:$D$7,2,FALSE),\"\")","v":"BENJAMIN GARCONS"},null,null,null,null,null,null,"0h00min00s",null,{"$f":"IFERROR(IF(T32>VLOOKUP(K32,Catégories!$B$3:$D$7,3,FALSE),\"Attention\",\"OK\"),\"\")","v":"OK"}]
[null,null,null,78,"WIART","Mike","LEYMENT",null,null,null,1.2,{"$f":"IFERROR(VLOOKUP(K33,Catégories!$B$3:$D$7,2,FALSE),\"\")","v":"BENJAMIN GARCONS"},null,null,null,null,null,null,"0h00min00s",null,{"$f":"IFERROR(IF(T33>VLOOKUP(K33,Catégories!$B$3:$D$7,3,FALSE),\"Attention\",\"OK\"),\"\")","v":"OK"}]
[null,null,null,79,"BERGERY","Eliott","CEYZERIAT",null,null,null,1.2,{"$f":"IFERROR(VLOOKUP(K34,Catégories!$B$3:$D$7,2,FALSE),\"\")","v":"BENJAMIN GARCONS"},null,null,null,null,null,null,"0h00min00s",null,{"$f":"IFERROR(IF(T34>VLOOKUP(K34,Catégories!$B$3:$D$7,3,FALSE),\"Attention\",\"OK\"),\"\")","v":"OK"}]
[null,null,null,80,"BOMBOIS","Julien","CEYZERIAT",null,null,null,1.2,{"$f":"IFERROR(VLOOKUP(K35,Catégories!$B$3:$D$7,2,FALSE),\"\")","v":"BENJAMIN GARCONS"},null,null,null,null,null,null,"0h00min00s",null,{"$f":"IFERROR(IF(T35>VLOOKUP(K35,Catégories!$B$3:$D$7,3,FALSE),\"Attention\",\"OK\"),\"\")","v":"OK"}]
[null,null,null,81,"BONHOMME","Logan","CEYZERIAT",null,null,null,1.2,{"$f":"IFERROR(VLOOKUP(K36,Catégories!$B$3:$D$7,2,FALSE),\"\")","v":"BENJAMIN GARCONS"},null,null,null,null,null,null,"0h00min00s",null,{"$f":"IFERROR(IF(T36>VLOOKUP(K36,Catégories!$B$3:$D$7,3,FALSE),\"Attention\",\"OK\"),\"\")","v":"OK"}]
[null,null,null,82,"CHABERT","Amaury","CEYZERIAT",null,null,null,1.2,{"$f":"IFERROR(VLOOKUP(K37,Catégories!$B$3:$D$7,2,FALSE),\"\")","v":"BENJAMIN GARCONS"},null,null,null,null,null,null,"0h00min00s",null,{"$f":"IFERROR(IF(T37>VLOOKUP(K37,Catégories!$B$3:$D$7,3,FALSE),\"Attention\",\"OK\"),\"\")","v":"OK"}]
[null,null,null,83,"COUTURIER","Elvin","CEYZERIAT",null,null,null,1.2,{"$f":"IFERROR(VLOOKUP(K38,Catégories!$B$3:$D$7,2,FALSE),\"\")","v":"BENJAMIN GARCONS"},null,null,null,null,null,null,"0h00min00s",null,{"$f":"IFERROR(IF(T38>VLOOKUP(K38,Catégories!$B$3:$D$7,3,FALSE),\"Attention\",\"OK\"),\"\")","v":"OK"}]
[null,null,null,84,"DOUVRE","Vincent","CEYZERIAT",null,null,null,1.2,{"$f":"IFERROR(VLOOKUP(K39,Catégories!$B$3:$D$7,2,FALSE),\"\")","v":"BENJAMIN GARCONS"},null,null,null,null,null,null,"0h00min00s",null,{"$f":"IFERROR(IF(T39>VLOOKUP(K39,Catégories!$B$3:$D$7,3,FALSE),\"Attention\",\"OK\"),\"\")","v":"OK"}]
[null,null,null,85,"DRAPER","Robin","CEYZERIAT",null,null,null,1.2,{"$f":"IFERROR(VLOOKUP(K40,Catégories!$B$3:$D$7,2,FALSE),\"\")","v":"BENJAMIN GARCONS"},null,null,null,null,null,null,"0h00min00s",null,{"$f":"IFERROR(IF(T40>VLOOKUP(K40,Catégories!$B$3:$D$7,3,FALSE),\"Attention\",\"OK\"),\"\")","v":"OK"}]
[null,null,null,86,"DUBOIS","Séraphin","CEYZERIAT",null,null,null,1.2,{"$f":"IFERROR(VLOOKUP(K41,Catégories!$B$3:$D$7,2,FALSE),\"\")","v":"BENJAMIN GARCONS"},null,null,null,null,null,null,"0h00min00s",null,{"$f":"IFERROR(IF(T41>VLOOKUP(K41,Catégories!$B$3:$D$7,3,FALSE),\"Attention\",\"OK\"),\"\")","v":"OK"}]
[null,null,null,87,"GARNIER","Thomas","CEYZERIAT",null,null,null,1.2,{"$f":"IFERROR(VLOOKUP(K42,Catégories!$B$3:$D$7,2,FALSE),\"\")","v":"BENJAMIN GARCONS"},null,null,null,null,null,null,"0h00min00s",null,{"$f":"IFERROR(IF(T42>VLOOKUP(K42,Catégories!$B$3:$D$7,3,FALSE),\"Attention\",\"OK\"),\"\")","v":"OK"}]
[null,null,null,88,"GILLET","Jules","CEYZERIAT",null,null,null,1.2,{"$f":"IFERROR(VLOOKUP(K43,Catégories!$B$3:$D$7,2,FALSE),\"\")","v":"BENJAMIN GARCONS"},null,null,null,null,null,null,{"$f":"transforme_seconde((P43-M43)*3600+(Q43-N43)*60+(R43-O43))","v":"0h00min00s"},null,{"$f":"IFERROR(IF(T43>VLOOKUP(K43,Catégories!$B$3:$D$7,3,FALSE),\"Attention\",\"OK\"),\"\")","v":"OK"}]
[null,null,null,89,"GOUIN","Theo","CEYZERIAT",null,null,null,1.2,{"$f":"IFERROR(VLOOKUP(K44,Catégories!$B$3:$D$7,2,FALSE),\"\")","v":"BENJAMIN GARCONS"},null,null,null,null,null,null,"0h00min00s",null,{"$f":"IFERROR(IF(T44>VLOOKUP(K44,Catégories!$B$3:$D$7,3,FALSE),\"Attention\",\"OK\"),\"\")","v":"OK"}]
[null,null,null,90,"GUINET","Robin","CEYZERIAT",null,null,null,1.2,{"$f":"IFERROR(VLOOKUP(K45,Catégories!$B$3:$D$7,2,FALSE),\"\")","v":"BENJAMIN GARCONS"},null,null,null,null,null,null,"0h00min00s",null,{"$f":"IFERROR(IF(T45>VLOOKUP(K45,Catégories!$B$3:$D$7,3,FALSE),\"Attention\",\"OK\"),\"\")","v":"OK"}]
[null,null,null,91,"PERNOD","Romain","CEYZERIAT",null,null,null,1.2,{"$f":"IFERROR(VLOOKUP(K46,Catégories!$B$3:$D$7,2,FALSE),\"\")","v":"BENJAMIN GARCONS"},null,null,null,null,null,null,"0h00min00s",null,{"$f":"IFERROR(IF(T46>VLOOKUP(K46,Catégories!$B$3:$D$7,3,FALSE),\"Attention\",\"OK\"),\"\")","v":"OK"}]
[null,null,null,92,"REDHON SIMIC","Déjan","CEYZERIAT",null,null,null,1.2,{"$f":"IFERROR(VLOOKUP(K47,Catégories!$B$3:$D$7,2,FALSE),\"\")","v":"BENJAMIN GARCONS"},null,null,null,null,null,null,"0h00min00s",null,{"$f":"IFERROR(IF(T47>VLOOKUP(K47,Catégories!$B$3:$D$7,3,FALSE),\"Attention\",\"OK\"),\"\")","v":"OK"}]
[null,null,null,93,"SAINT ÉTIENNE","Thibault","CEYZERIAT",null,null,null,1.2,{"$f":"IFERROR(VLOOKUP(K48,Catégories!$B$3:$D$7,2,FALSE),\"\")","v":"BENJAMIN GARCONS"},null,null,null,null,null,null,"0h00min00s",null,{"$f":"IFERROR(IF(T48>VLOOKUP(K48,Catégories!$B$3:$D$7,3,FALSE),\"Attention\",\"OK\"),\"\")","v":"OK"}]
[null,null,null,94,"TIGNAT","Tristan","CEYZERIAT",null,null,null,1.2,{"$f":"IFERROR(VLOOKUP(K49,Catégories!$B$3:$D$7,2,FALSE),\"\")","v":"BENJAMIN GARCONS"},null,null,null,null,null,null,"0h00min00s",null,{"$f":"IFERROR(IF(T49>VLOOKUP(K49,Catégories!$B$3:$D$7,3,FALSE),\"Attention\",\"OK\"),\"\")","v":"OK"}]
[null,null,null,95,"VALETTE","Jules","CEYZERIAT",null,null,null,1.2,{"$f":"IFERROR(VLOOKUP(K50,Catégories!$B$3:$D$7,2,FALSE),\"\")","v":"BENJAMIN GARCONS"},null,null,null,null,null,null,"0h00min00s",null,{"$f":"IFERROR(IF(T50>VLOOKUP(K50,Catégories!$B$3:$D$7,3,FALSE),\"Attention\",\"OK\"),\"\")","v":"OK"}]
[null,null,null,96,"VAN DER VOSSEN","Florent","CEYZERIAT",null,null,null,1.2,{"$f":"IFERROR(VLOOKUP(K51,Catégories!$B$3:$D$7,2,FALSE),\"\")","v":"BENJAMIN GARCONS"},null,null,null,null,null,null,"0h00min00s",null,{"$f":"IFERROR(IF(T51>VLOOKUP(K51,Catégories!$B$3:$D$7,3,FALSE),\"Attention\",\"OK\"),\"\")","v":"OK"}]
[null,null,null,97,"JACQUINOT","Romain","LAGNIEU ",null,null,null,1.2,{"$f":"IFERROR(VLOOKUP(K52,Catégories!$B$3:$D$7,2,FALSE),\"\")","v":"BENJAMIN GARCONS"},null,null,null,null,null,null,"0h00min00s",null,{"$f":"IFERROR(IF(T52>VLOOKUP(K52,Catégories!$B$3:$D$7,3,FALSE),\"Attention\",\"OK\"),\"\")","v":"OK"}]
[null,null,null,98,"MICHALON","Lucas","LAGNIEU ",null,null,null,1.2,{"$f":"IFERROR(VLOOKUP(K53,Catégories!$B$3:$D$7,2,FALSE),\"\")","v":"BENJAMIN GARCONS"},null,null,null,null,null,null,"0h00min00s",null,{"$f":"IFERROR(IF(T53>VLOOKUP(K53,Catégories!$B$3:$D$7,3,FALSE),\"Attention\",\"OK\"),\"\")","v":"OK"}]
[null,null,null,99,"ARAUJO","Hugo","PONCIN",null,null,null,1.2,{"$f":"IFERROR(VLOOKUP(K54,Catégories!$B$3:$D$7,2,FALSE),\"\")","v":"BENJAMIN GARCONS"},null,null,null,null,null,null,"0h00min00s",null,{"$f":"IFERROR(IF(T54>VLOOKUP(K54,Catégories!$B$3:$D$7,3,FALSE),\"Attention\",\"OK\"),\"\")","v":"OK"}]
[null,null,null,100,"BEKKADOUR","Mohamed","PONCIN",null,null,null,1.2,{"$f":"IFERROR(VLOOKUP(K55,Catégories!$B$3:$D$7,2,FALSE),\"\")","v":"BENJAMIN GARCONS"},null,null,null,null,null,null,"0h00min00s",null,{"$f":"IFERROR(IF(T55>VLOOKUP(K55,Catégories!$B$3:$D$7,3,FALSE),\"Attention\",\"OK\"),\"\")","v":"OK"}]
[null,null,null,101,"BESSIERE","Clement","PONCIN",null,null,null,1.2,{"$f":"IFERROR(VLOOKUP(K56,Catégories!$B$3:$D$7,2,FALSE),\"\")","v":"BENJAMIN GARCONS"},null,null,null,null,null,null,"0h00min00s",null,{"$f":"IFERROR(IF(T56>VLOOKUP(K56,Catégories!$B$3:$D$7,3,FALSE),\"Attention\",\"OK\"),\"\")","v":"OK"}]
[null,null,null,102,"BOITE","Gwenegan","PONCIN",null,null,null,1.2,{"$f":"IFERROR(VLOOKUP(K57,Catégories!$B$3:$D$7,2,FALSE),\"\")","v":"BENJAMIN GARCONS"},null,null,null,null,null,null,"0h00min00s",null,{"$f":"IFERROR(IF(T57>VLOOKUP(K57,Catégories!$B$3:$D$7,3,FALSE),\"Attention\",\"OK\"),\"\")","v":"OK"}]
[null,null,null,103,"BOTTEX","Romeo","PONCIN",null,null,null,1.2,{"$f":"IFERROR(VLOOKUP(K58,Catégories!$B$3:$D$7,2,FALSE),\"\")","v":"BENJAMIN GARCONS"},null,null,null,null,null,null,"0h00min00s",null,{"$f":"IFERROR(IF(T58>VLOOKUP(K58,Catégories!$B$3:$D$7,3,FALSE),\"Attention\",\"OK\"),\"\")","v":"OK"}]
[null,null,null,104,"BREUX","Melvin","PONCIN",null,null,null,1.2,{"$f":"IFERROR(VLOOKUP(K59,Catégories!$B$3:$D$7,2,FALSE),\"\")","v":"BENJAMIN GARCONS"},null,null,null,null,null,null,"0h00min00s",null,{"$f":"IFERROR(IF(T59>VLOOKUP(K59,Catégories!$B$3:$D$7,3,FALSE),\"Attention\",\"OK\"),\"\")","v":"OK"}]
[null,null,null,105,"CEGARRA","Theo","PONCIN",null,null,null,1.2,{"$f":"IFERROR(VLOOKUP(K60,Catégories!$B$3:$D$7,2,FALSE),\"\")","v":"BENJAMIN GARCONS"},null,null,null,null,null,null,"0h00min00s",null,{"$f":"IFERROR(IF(T60>VLOOKUP(K60,Catégories!$B$3:$D$7,3,FALSE),\"Attention\",\"OK\"),\"\")","v":"OK"}]
[null,null,null,106,"CLOCHET","Estevan","PONCIN",null,null,null,1.2,{"$f":"IFERROR(VLOOKUP(K61,Catégories!$B$3:$D$7,2,FALSE),\"\")","v":"BENJAMIN GARCONS"},null,null,null,null,null,null,"0h00min00s",null,{"$f":"IFERROR(IF(T61>VLOOKUP(K61,Catégories!$B$3:$D$7,3,FALSE),\"Attention\",\"OK\"),\"\")","v":"OK"}]
[null,null,null,107,"FAURE","Mateo","PONCIN",null,null,null,1.2,{"$f":"IFERROR(VLOOKUP(K62,Catégories!$B$3:$D$7,2,FALSE),\"\")","v":"BENJAMIN GARCONS"},null,null,null,null,null,null,"0h00min00s",null,{"$f":"IFERROR(IF(T62>VLOOKUP(K62,Catégories!$B$3:$D$7,3,FALSE),\"Attention\",\"OK\"),\"\")","v":"OK"}]
[null,null,null,108,"GAUTHIER","Guillaume","PONCIN",null,null,null,1.2,{"$f":"IFERROR(VLOOKUP(K63,Catégories!$B$3:$D$7,2,FALSE),\"\")","v":"BENJAMIN GARCONS"},null,null,null,null,null,null,"0h00min00s",null,{"$f":"IFERROR(IF(T63>VLOOKUP(K63,Catégories!$B$3:$D$7,3,FALSE),\"Attention\",\"OK\"),\"\")","v":"OK"}]
[null,null,null,109,"GERGOT","Alexandre","PONCIN",null,null,null,1.2,{"$f":"IFERROR(VLOOKUP(K64,Catégories!$B$3:$D$7,2,FALSE),\"\")","v":"BENJAMIN GARCONS"},null,null,null,null,null,null,"0h00min00s",null,{"$f":"IFERROR(IF(T64>VLOOKUP(K64,Catégories!$B$3:$D$7,3,FALSE),\"Attention\",\"OK\"),\"\")","v":"OK"}]
[null,null,null,110,"GRASSOT","Antoine","PONCIN",null,null,null,1.2,{"$f":"IFERROR(VLOOKUP(K65,Catégories!$B$3:$D$7,2,FALSE),\"\")","v":"BENJAMIN GARCONS"},null,null,null,null,null,null,"0h00min00s",null,{"$f":"IFERROR(IF(T65>VLOOKUP(K65,Catégories!$B$3:$D$7,3,FALSE),\"Attention\",\"OK\"),\"\")","v":"OK"}]
[null,null,null,111,"GUYON-NOEL","Benjamin","PONCIN",null,null,null,1.2,{"$f":"IFERROR(VLOOKUP(K66,Catégories!$B$3:$D$7,2,FALSE),\"\")","v":"BENJAMIN GARCONS"},null,null,null,null,null,null,"0h00min00s",null,{"$f":"IFERROR(IF(T66>VLOOKUP(K66,Catégories!$B$3:$D$7,3,FALSE),\"Attention\",\"OK\"),\"\")","v":"OK"}]
[null,null,null,112,"JOSSERAND","Axel","PONCIN",null,null,null,1.2,{"$f":"IFERROR(VLOOKUP(K67,Catégories!$B$3:$D$7,2,FALSE),\"\")","v":"BENJAMIN GARCONS"},null,null,null,null,null,null,"0h00min00s",null,{"$f":"IFERROR(IF(T67>VLOOKUP(K67,Catégories!$B$3:$D$7,3,FALSE),\"Attention\",\"OK\"),\"\")","v":"OK"}]
[null,null,null,null,null,null,null,null,null,null,null,{"$f":"IFERROR(VLOOKUP(K68,Catégories!$B$3:$D$7,2,FALSE),\"\")","v":""},null,null,null,null,null,null,"0h00min00s",null,{"$f":"IFERROR(IF(T68>VLOOKUP(K68,Catégories!$B$3:$D$7,3,FALSE),\"Attention\",\"OK\"),\"\")","v":""}]
[null,null,null,null,null,null,null,null,null,null,null,{"$f":"IFERROR(VLOOKUP(K69,Catégories!$B$3:$D$7,2,FALSE),\"\")","v":""},null,null,null,null,null,null,"0h00min00s",null,{"$f":"IFERROR(IF(T69>VLOOKUP(K69,Catégories!$B$3:$D$7,3,FALSE),\"Attention\",\"OK\"),\"\")","v":""}]
[null,null,null,null,null,null,null,null,null,null,null,{"$f":"IFERROR(VLOOKUP(K70,Catégories!$B$3:$D$7,2,FALSE),\"\")","v":""},null,null,null,null,null,null,"0h00min00s",null,{"$f":"IFERROR(IF(T70>VLOOKUP(K70,Catégories!$B$3:$D$7,3,FALSE),\"Attention\",\"OK\"),\"\")","v":""}]
[null,null,null,null,null,null,null,null,null,null,null,{"$f":"IFERROR(VLOOKUP(K71,Catégories!$B$3:$D$7,2,FALSE),\"\")","v":""},null,null,null,null,null,null,"0h00min00s",null,{"$f":"IFERROR(IF(T71>VLOOKUP(K71,Catégories!$B$3:$D$7,3,FALSE),\"Attention\",\"OK\"),\"\")","v":""}]
[null,null,null,null,null,null,null,null,null,null,null,{"$f":"IFERROR(VLOOKUP(K72,Catégories!$B$3:$D$7,2,FALSE),\"\")","v":""},null,null,null,null,null,null,"0h00min00s",null,{"$f":"IFERROR(IF(T72>VLOOKUP(K72,Catégories!$B$3:$D$7,3,FALSE),\"Attention\",\"OK\"),\"\")","v":""}]
[null,null,null,null,null,null,null,null,null,null,null,{"$f":"IFERROR(VLOOKUP(K73,Catégories!$B$3:$D$7,2,FALSE),\"\")","v":""},null,null,null,null,null,null,"0h00min00s",null,{"$f":"IFERROR(IF(T73>VLOOKUP(K73,Catégories!$B$3:$D$7,3,FALSE),\"Attention\",\"OK\"),\"\")","v":""}]
[null,null,null,null,null,null,null,null,null,null,null,{"$f":"IFERROR(VLOOKUP(K74,Catégories!$B$3:$D$7,2,FALSE),\"\")","v":""},null,null,null,null,null,null,"0h00min00s",null,{"$f":"IFERROR(IF(T74>VLOOKUP(K74,Catégories!$B$3:$D$7,3,FALSE),\"Attention\",\"OK\"),\"\")","v":""}]
[null,null,null,null,null,null,null,null,null,null,null,{"$f":"IFERROR(VLOOKUP(K75,Catégories!$B$3:$D$7,2,FALSE),\"\")","v":""},null,null,null,null,null,null,{"$f":"transforme_seconde((P75-M75)*3600+(Q75-N75)*60+(R75-O75))","v":"0h00min00s"},null,{"$f":"IFERROR(IF(T75>VLOOKUP(K75,Catégories!$B$3:$D$7,3,FALSE),\"Attention\",\"OK\"),\"\")","v":""}]
[null,null,null,null,null,null,null,null,null,null,null,{"$f":"IFERROR(VLOOKUP(K76,Catégories!$B$3:$D$7,2,FALSE),\"\")","v":""},null,null,null,null,null,null,"0h00min00s",null,{"$f":"IFERROR(IF(T76>VLOOKUP(K76,Catégories!$B$3:$D$7,3,FALSE),\"Attention\",\"OK\"),\"\")","v":""}]
[null,null,null,null,null,null,null,null,null,null,null,{"$f":"IFERROR(VLOOKUP(K77,Catégories!$B$3:$D$7,2,FALSE),\"\")","v":""},null,null,null,null,null,null,"0h00min00s",null,{"$f":"IFERROR(IF(T77>VLOOKUP(K77,Catégories!$B$3:$D$7,3,FALSE),\"Attention\",\"OK\"),\"\")","v":""}]
[null,null,null,null,null,null,null,null,null,null,null,{"$f":"IFERROR(VLOOKUP(K78,Catégories!$B$3:$D$7,2,FALSE),\"\")","v":""},null,null,null,null,null,null,"0h00min00s",null,{"$f":"IFERROR(IF(T78>VLOOKUP(K78,Catégories!$B$3:$D$7,3,FALSE),\"Attention\",\"OK\"),\"\")","v":""}]
[null,null,null,null,null,null,null,null,null,null,null,{"$f":"IFERROR(VLOOKUP(K79,Catégories!$B$3:$D$7,2,FALSE),\"\")","v":""},null,null,null,null,null,null,"0h00min00s",null,{"$f":"IFERROR(IF(T79>VLOOKUP(K79,Catégories!$B$3:$D$7,3,FALSE),\"Attention\",\"OK\"),\"\")","v":""}]
[null,null,null,null,null,null,null,null,null,null,null,{"$f":"IFERROR(VLOOKUP(K80,Catégories!$B$3:$D$7,2,FALSE),\"\")","v":""},null,null,null,null,null,null,"0h00min00s",null,{"$f":"IFERROR(IF(T80>VLOOKUP(K80,Catégories!$B$3:$D$7,3,FALSE),\"Attention\",\"OK\"),\"\")","v":""}]
[null,null,null,null,null,null,null,null,null,null,null,{"$f":"IFERROR(VLOOKUP(K81,Catégories!$B$3:$D$7,2,FALSE),\"\")","v":""},null,null,null,null,null,null,"0h00min00s",null,{"$f":"IFERROR(IF(T81>VLOOKUP(K81,Catégories!$B$3:$D$7,3,FALSE),\"Attention\",\"OK\"),\"\")","v":""}]
[null,null,null,null,null,null,null,null,null,null,null,{"$f":"IFERROR(VLOOKUP(K82,Catégories!$B$3:$D$7,2,FALSE),\"\")","v":""},null,null,null,null,null,null,"0h00min00s",null,{"$f":"IFERROR(IF(T82>VLOOKUP(K82,Catégories!$B$3:$D$7,3,FALSE),\"Attention\",\"OK\"),\"\")","v":""}]
[null,null,null,null,null,null,null,null,null,null,null,{"$f":"IFERROR(VLOOKUP(K83,Catégories!$B$3:$D$7,2,FALSE),\"\")","v":""},null,null,null,null,null,null,"0h00min00s",null,{"$f":"IFERROR(IF(T83>VLOOKUP(K83,Catégories!$B$3:$D$7,3,FALSE),\"Attention\",\"OK\"),\"\")","v":""}]
[null,null,null,null,null,null,null,null,null,null,null,{"$f":"IFERROR(VLOOKUP(K84,Catégories!$B$3:$D$7,2,FALSE),\"\")","v":""},null,null,null,null,null,null,"0h00min00s",null,{"$f":"IFERROR(IF(T84>VLOOKUP(K84,Catégories!$B$3:$D$7,3,FALSE),\"Attention\",\"OK\"),\"\")","v":""}]
[null,null,null,null,null,null,null,null,null,null,null,{"$f":"IFERROR(VLOOKUP(K85,Catégories!$B$3:$D$7,2,FALSE),\"\")","v":""},null,null,null,null,null,null,"0h00min00s",null,{"$f":"IFERROR(IF(T85>VLOOKUP(K85,Catégories!$B$3:$D$7,3,FALSE),\"Attention\",\"OK\"),\"\")","v":""}]
[null,null,null,null,null,null,null,null,null,null,null,{"$f":"IFERROR(VLOOKUP(K86,Catégories!$B$3:$D$7,2,FALSE),\"\")","v":""},null,null,null,null,null,null,"0h00min00s",null,{"$f":"IFERROR(IF(T86>VLOOKUP(K86,Catégories!$B$3:$D$7,3,FALSE),\"Attention\",\"OK\"),\"\")","v":""}]
[null,null,null,null,null,null,null,null,null,null,null,{"$f":"IFERROR(VLOOKUP(K87,Catégories!$B$3:$D$7,2,FALSE),\"\")","v":""},null,null,null,null,null,null,"0h00min00s",null,{"$f":"IFERROR(IF(T87>VLOOKUP(K87,Catégories!$B$3:$D$7,3,FALSE),\"Attention\",\"OK\"),\"\")","v":""}]
[null,null,null,null,null,null,null,null,null,null,null,{"$f":"IFERROR(VLOOKUP(K88,Catégories!$B$3:$D$7,2,FALSE),\"\")","v":""},null,null,null,null,null,null,"0h00min00s",null,{"$f":"IFERROR(IF(T88>VLOOKUP(K88,Catégories!$B$3:$D$7,3,FALSE),\"Attention\",\"OK\"),\"\")","v":""}]
[null,null,null,null,null,null,null,null,null,null,null,{"$f":"IFERROR(VLOOKUP(K89,Catégories!$B$3:$D$7,2,FALSE),\"\")","v":""},null,null,null,null,null,null,"0h00min00s",null,{"$f":"IFERROR(IF(T89>VLOOKUP(K89,Catégories!$B$3:$D$7,3,FALSE),\"Attention\",\"OK\"),\"\")","v":""}]
[null,null,null,null,null,null,null,null,null,null,null,{"$f":"IFERROR(VLOOKUP(K90,Catégories!$B$3:$D$7,2,FALSE),\"\")","v":""},null,null,null,null,null,null,"0h00min00s",null,{"$f":"IFERROR(IF(T90>VLOOKUP(K90,Catégories!$B$3:$D$7,3,FALSE),\"Attention\",\"OK\"),\"\")","v":""}]
[null,null,null,null,null,null,null,null,null,null,null,{"$f":"IFERROR(VLOOKUP(K91,Catégories!$B$3:$D$7,2,FALSE),\"\")","v":""},null,null,null,null,null,null,"0h00min00s",null,{"$f":"IFERROR(IF(T91>VLOOKUP(K91,Catégories!$B$3:$D$7,3,FALSE),\"Attention\",\"OK\"),\"\")","v":""}]
[null,null,null,null,null,null,null,null,null,null,null,{"$f":"IFERROR(VLOOKUP(K92,Catégories!$B$3:$D$7,2,FALSE),\"\")","v":""},null,null,null,null,null,null,"0h00min00s",null,{"$f":"IFERROR(IF(T92>VLOOKUP(K92,Catégories!$B$3:$D$7,3,FALSE),\"Attention\",\"OK\"),\"\")","v":""}]
[null,null,null,null,null,null,null,null,null,null,null,{"$f":"IFERROR(VLOOKUP(K93,Catégories!$B$3:$D$7,2,FALSE),\"\")","v":""},null,null,null,null,null,null,"0h00min00s",null,{"$f":"IFERROR(IF(T93>VLOOKUP(K93,Catégories!$B$3:$D$7,3,FALSE),\"Attention\",\"OK\"),\"\")","v":""}]
[null,null,null,null,null,null,null,null,null,null,null,{"$f":"IFERROR(VLOOKUP(K94,Catégories!$B$3:$D$7,2,FALSE),\"\")","v":""},null,null,null,null,null,null,"0h00min00s",null,{"$f":"IFERROR(IF(T94>VLOOKUP(K94,Catégories!$B$3:$D$7,3,FALSE),\"Attention\",\"OK\"),\"\")","v":""}]
[null,null,null,null,null,null,null,null,null,null,null,{"$f":"IFERROR(VLOOKUP(K95,Catégories!$B$3:$D$7,2,FALSE),\"\")","v":""},null,null,null,null,null,null,"0h00min00s",null,{"$f":"IFERROR(IF(T95>VLOOKUP(K95,Catégories!$B$3:$D$7,3,FALSE),\"Attention\",\"OK\"),\"\")","v":""}]
[null,null,null,null,null,null,null,null,null,null,null,{"$f":"IFERROR(VLOOKUP(K96,Catégories!$B$3:$D$7,2,FALSE),\"\")","v":""},null,null,null,null,null,null,"0h00min00s",null,{"$f":"IFERROR(IF(T96>VLOOKUP(K96,Catégories!$B$3:$D$7,3,FALSE),\"Attention\",\"OK\"),\"\")","v":""}]
[null,null,null,"Fin des données"]

{"sheet":"MINIME FILLES","index":4,"n_rows":36,"n_cols":21,"rows_kept":36,"cut":false,"hidden":false,"merged":[[8,3,8,9],[8,10,8,13],[8,14,8,19],[9,10,9,11],[9,12,9,14],[9,15,9,17]]}
[]
[]
[]
[]
[]
[]
[]
[]
[null,null,null,"Course d'Orientation",null,null,null,null,null,null,"CLASSEMENT :",null,null,null,"MINIME FILLES"]
[null,null,null,"N°équipe","Nom1","Prénom1","Établissement 1","Nom2","Prénom2","Établissement 2","Catégorie",null,"Tps de départ",null,null,"Tps d'arrivée",null,null,"Tps de parcours","Nb balises","Vérif balise"]
[null,null,null,null,null,null,null,null,null,null,null,{"$f":"IFERROR(VLOOKUP(K11,Catégories!$B$3:$D$7,2,FALSE),\"\")","v":""},null,null,null,null,null,null,{"$f":"transforme_seconde((P11-M11)*3600+(Q11-N11)*60+(R11-O11))","v":"0h00min00s"},null,{"$f":"IFERROR(IF(T11>VLOOKUP(K11,Catégories!$B$3:$D$7,3,FALSE),\"Attention\",\"OK\"),\"\")","v":""}]
[null,null,null,null,null,null,null,null,null,null,null,{"$f":"IFERROR(VLOOKUP(K12,Catégories!$B$3:$D$7,2,FALSE),\"\")","v":""},null,null,null,null,null,null,"0h00min00s",null,{"$f":"IFERROR(IF(T12>VLOOKUP(K12,Catégories!$B$3:$D$7,3,FALSE),\"Attention\",\"OK\"),\"\")","v":""}]
[null,null,null,null,null,null,null,null,null,null,null,{"$f":"IFERROR(VLOOKUP(K13,Catégories!$B$3:$D$7,2,FALSE),\"\")","v":""},null,null,null,null,null,null,"0h00min00s",null,{"$f":"IFERROR(IF(T13>VLOOKUP(K13,Catégories!$B$3:$D$7,3,FALSE),\"Attention\",\"OK\"),\"\")","v":""}]
[null,null,null,null,null,null,null,null,null,null,null,{"$f":"IFERROR(VLOOKUP(K14,Catégories!$B$3:$D$7,2,FALSE),\"\")","v":""},null,null,null,null,null,null,"0h00min00s",null,{"$f":"IFERROR(IF(T14>VLOOKUP(K14,Catégories!$B$3:$D$7,3,FALSE),\"Attention\",\"OK\"),\"\")","v":""}]
[null,null,null,null,null,null,null,null,null,null,null,{"$f":"IFERROR(VLOOKUP(K15,Catégories!$B$3:$D$7,2,FALSE),\"\")","v":""},null,null,null,null,null,null,"0h00min00s",null,{"$f":"IFERROR(IF(T15>VLOOKUP(K15,Catégories!$B$3:$D$7,3,FALSE),\"Attention\",\"OK\"),\"\")","v":""}]
[null,null,null,null,null,null,null,null,null,null,null,{"$f":"IFERROR(VLOOKUP(K16,Catégories!$B$3:$D$7,2,FALSE),\"\")","v":""},null,null,null,null,null,null,"0h00min00s",null,{"$f":"IFERROR(IF(T16>VLOOKUP(K16,Catégories!$B$3:$D$7,3,FALSE),\"Attention\",\"OK\"),\"\")","v":""}]
[null,null,null,null,null,null,null,null,null,null,null,{"$f":"IFERROR(VLOOKUP(K17,Catégories!$B$3:$D$7,2,FALSE),\"\")","v":""},null,null,null,null,null,null,"0h00min00s",null,{"$f":"IFERROR(IF(T17>VLOOKUP(K17,Catégories!$B$3:$D$7,3,FALSE),\"Attention\",\"OK\"),\"\")","v":""}]
[null,null,null,null,null,null,null,null,null,null,null,{"$f":"IFERROR(VLOOKUP(K18,Catégories!$B$3:$D$7,2,FALSE),\"\")","v":""},null,null,null,null,null,null,"0h00min00s",null,{"$f":"IFERROR(IF(T18>VLOOKUP(K18,Catégories!$B$3:$D$7,3,FALSE),\"Attention\",\"OK\"),\"\")","v":""}]
[null,null,null,null,null,null,null,null,null,null,null,{"$f":"IFERROR(VLOOKUP(K19,Catégories!$B$3:$D$7,2,FALSE),\"\")","v":""},null,null,null,null,null,null,"0h00min00s",null,{"$f":"IFERROR(IF(T19>VLOOKUP(K19,Catégories!$B$3:$D$7,3,FALSE),\"Attention\",\"OK\"),\"\")","v":""}]
[null,null,null,null,null,null,null,null,null,null,null,{"$f":"IFERROR(VLOOKUP(K20,Catégories!$B$3:$D$7,2,FALSE),\"\")","v":""},null,null,null,null,null,null,"0h00min00s",null,{"$f":"IFERROR(IF(T20>VLOOKUP(K20,Catégories!$B$3:$D$7,3,FALSE),\"Attention\",\"OK\"),\"\")","v":""}]
[null,null,null,null,null,null,null,null,null,null,null,{"$f":"IFERROR(VLOOKUP(K21,Catégories!$B$3:$D$7,2,FALSE),\"\")","v":""},null,null,null,null,null,null,"0h00min00s",null,{"$f":"IFERROR(IF(T21>VLOOKUP(K21,Catégories!$B$3:$D$7,3,FALSE),\"Attention\",\"OK\"),\"\")","v":""}]
[null,null,null,null,null,null,null,null,null,null,null,{"$f":"IFERROR(VLOOKUP(K22,Catégories!$B$3:$D$7,2,FALSE),\"\")","v":""},null,null,null,null,null,null,"0h00min00s",null,{"$f":"IFERROR(IF(T22>VLOOKUP(K22,Catégories!$B$3:$D$7,3,FALSE),\"Attention\",\"OK\"),\"\")","v":""}]
[null,null,null,null,null,null,null,null,null,null,null,{"$f":"IFERROR(VLOOKUP(K23,Catégories!$B$3:$D$7,2,FALSE),\"\")","v":""},null,null,null,null,null,null,"0h00min00s",null,{"$f":"IFERROR(IF(T23>VLOOKUP(K23,Catégories!$B$3:$D$7,3,FALSE),\"Attention\",\"OK\"),\"\")","v":""}]
[null,null,null,null,null,null,null,null,null,null,null,{"$f":"IFERROR(VLOOKUP(K24,Catégories!$B$3:$D$7,2,FALSE),\"\")","v":""},null,null,null,null,null,null,"0h00min00s",null,{"$f":"IFERROR(IF(T24>VLOOKUP(K24,Catégories!$B$3:$D$7,3,FALSE),\"Attention\",\"OK\"),\"\")","v":""}]
[null,null,null,null,null,null,null,null,null,null,null,{"$f":"IFERROR(VLOOKUP(K25,Catégories!$B$3:$D$7,2,FALSE),\"\")","v":""},null,null,null,null,null,null,"0h00min00s",null,{"$f":"IFERROR(IF(T25>VLOOKUP(K25,Catégories!$B$3:$D$7,3,FALSE),\"Attention\",\"OK\"),\"\")","v":""}]
[null,null,null,null,null,null,null,null,null,null,null,{"$f":"IFERROR(VLOOKUP(K26,Catégories!$B$3:$D$7,2,FALSE),\"\")","v":""},null,null,null,null,null,null,"0h00min00s",null,{"$f":"IFERROR(IF(T26>VLOOKUP(K26,Catégories!$B$3:$D$7,3,FALSE),\"Attention\",\"OK\"),\"\")","v":""}]
[null,null,null,null,null,null,null,null,null,null,null,{"$f":"IFERROR(VLOOKUP(K27,Catégories!$B$3:$D$7,2,FALSE),\"\")","v":""},null,null,null,null,null,null,"0h00min00s",null,{"$f":"IFERROR(IF(T27>VLOOKUP(K27,Catégories!$B$3:$D$7,3,FALSE),\"Attention\",\"OK\"),\"\")","v":""}]
[null,null,null,null,null,null,null,null,null,null,null,{"$f":"IFERROR(VLOOKUP(K28,Catégories!$B$3:$D$7,2,FALSE),\"\")","v":""},null,null,null,null,null,null,"0h00min00s",null,{"$f":"IFERROR(IF(T28>VLOOKUP(K28,Catégories!$B$3:$D$7,3,FALSE),\"Attention\",\"OK\"),\"\")","v":""}]
[null,null,null,null,null,null,null,null,null,null,null,{"$f":"IFERROR(VLOOKUP(K29,Catégories!$B$3:$D$7,2,FALSE),\"\")","v":""},null,null,null,null,null,null,"0h00min00s",null,{"$f":"IFERROR(IF(T29>VLOOKUP(K29,Catégories!$B$3:$D$7,3,FALSE),\"Attention\",\"OK\"),\"\")","v":""}]
[null,null,null,null,null,null,null,null,null,null,null,{"$f":"IFERROR(VLOOKUP(K30,Catégories!$B$3:$D$7,2,FALSE),\"\")","v":""},null,null,null,null,null,null,"0h00min00s",null,{"$f":"IFERROR(IF(T30>VLOOKUP(K30,Catégories!$B$3:$D$7,3,FALSE),\"Attention\",\"OK\"),\"\")","v":""}]
[null,null,null,null,null,null,null,null,null,null,null,{"$f":"IFERROR(VLOOKUP(K31,Catégories!$B$3:$D$7,2,FALSE),\"\")","v":""},null,null,null,null,null,null,"0h00min00s",null,{"$f":"IFERROR(IF(T31>VLOOKUP(K31,Catégories!$B$3:$D$7,3,FALSE),\"Attention\",\"OK\"),\"\")","v":""}]
[null,null,null,null,null,null,null,null,null,null,null,{"$f":"IFERROR(VLOOKUP(K32,Catégories!$B$3:$D$7,2,FALSE),\"\")","v":""},null,null,null,null,null,null,"0h00min00s",null,{"$f":"IFERROR(IF(T32>VLOOKUP(K32,Catégories!$B$3:$D$7,3,FALSE),\"Attention\",\"OK\"),\"\")","v":""}]
[null,null,null,null,null,null,null,null,null,null,null,{"$f":"IFERROR(VLOOKUP(K33,Catégories!$B$3:$D$7,2,FALSE),\"\")","v":""},null,null,null,null,null,null,"0h00min00s",null,{"$f":"IFERROR(IF(T33>VLOOKUP(K33,Catégories!$B$3:$D$7,3,FALSE),\"Attention\",\"OK\"),\"\")","v":""}]
[null,null,null,null,null,null,null,null,null,null,null,{"$f":"IFERROR(VLOOKUP(K34,Catégories!$B$3:$D$7,2,FALSE),\"\")","v":""},null,null,null,null,null,null,"0h00min00s",null,{"$f":"IFERROR(IF(T34>VLOOKUP(K34,Catégories!$B$3:$D$7,3,FALSE),\"Attention\",\"OK\"),\"\")","v":""}]
[null,null,null,null,null,null,null,null,null,null,null,{"$f":"IFERROR(VLOOKUP(K35,Catégories!$B$3:$D$7,2,FALSE),\"\")","v":""},null,null,null,null,null,null,"0h00min00s",null,{"$f":"IFERROR(IF(T35>VLOOKUP(K35,Catégories!$B$3:$D$7,3,FALSE),\"Attention\",\"OK\"),\"\")","v":""}]
[null,null,null,"Fin des données"]

{"sheet":"MINIME GARCONS","index":5,"n_rows":58,"n_cols":21,"rows_kept":58,"cut":false,"hidden":false,"merged":[[8,3,8,9],[8,10,8,13],[8,14,8,19],[9,10,9,11],[9,12,9,14],[9,15,9,17]]}
[]
[]
[]
[]
[]
[]
[]
[]
[null,null,null,"Course d'Orientation",null,null,null,null,null,null,"CLASSEMENT :",null,null,null,"MINIME GARCONS"]
[null,null,null,"N°équipe","Nom1","Prénom1","Établissement 1","Nom2","Prénom2","Établissement 2","Catégorie",null,"Tps de départ",null,null,"Tps d'arrivée",null,null,"Tps de parcours","Nb balises","Vérif balise"]
[null,null,null,null,null,null,null,null,null,null,null,{"$f":"IFERROR(VLOOKUP(K11,Catégories!$B$3:$D$7,2,FALSE),\"\")","v":""},null,null,null,null,null,null,{"$f":"transforme_seconde((P11-M11)*3600+(Q11-N11)*60+(R11-O11))","v":"0h00min00s"},null,{"$f":"IFERROR(IF(T11>VLOOKUP(K11,Catégories!$B$3:$D$7,3,FALSE),\"Attention\",\"OK\"),\"\")","v":""}]
[null,null,null,null,null,null,null,null,null,null,null,{"$f":"IFERROR(VLOOKUP(K12,Catégories!$B$3:$D$7,2,FALSE),\"\")","v":""},null,null,null,null,null,null,"0h00min00s",null,{"$f":"IFERROR(IF(T12>VLOOKUP(K12,Catégories!$B$3:$D$7,3,FALSE),\"Attention\",\"OK\"),\"\")","v":""}]
[null,null,null,null,null,null,null,null,null,null,null,{"$f":"IFERROR(VLOOKUP(K13,Catégories!$B$3:$D$7,2,FALSE),\"\")","v":""},null,null,null,null,null,null,"0h00min00s",null,{"$f":"IFERROR(IF(T13>VLOOKUP(K13,Catégories!$B$3:$D$7,3,FALSE),\"Attention\",\"OK\"),\"\")","v":""}]
[null,null,null,null,null,null,null,null,null,null,null,{"$f":"IFERROR(VLOOKUP(K14,Catégories!$B$3:$D$7,2,FALSE),\"\")","v":""},null,null,null,null,null,null,"0h00min00s",null,{"$f":"IFERROR(IF(T14>VLOOKUP(K14,Catégories!$B$3:$D$7,3,FALSE),\"Attention\",\"OK\"),\"\")","v":""}]
[null,null,null,null,null,null,null,null,null,null,null,{"$f":"IFERROR(VLOOKUP(K15,Catégories!$B$3:$D$7,2,FALSE),\"\")","v":""},null,null,null,null,null,null,"0h00min00s",null,{"$f":"IFERROR(IF(T15>VLOOKUP(K15,Catégories!$B$3:$D$7,3,FALSE),\"Attention\",\"OK\"),\"\")","v":""}]
[null,null,null,null,null,null,null,null,null,null,null,{"$f":"IFERROR(VLOOKUP(K16,Catégories!$B$3:$D$7,2,FALSE),\"\")","v":""},null,null,null,null,null,null,"0h00min00s",null,{"$f":"IFERROR(IF(T16>VLOOKUP(K16,Catégories!$B$3:$D$7,3,FALSE),\"Attention\",\"OK\"),\"\")","v":""}]
[null,null,null,null,null,null,null,null,null,null,null,{"$f":"IFERROR(VLOOKUP(K17,Catégories!$B$3:$D$7,2,FALSE),\"\")","v":""},null,null,null,null,null,null,"0h00min00s",null,{"$f":"IFERROR(IF(T17>VLOOKUP(K17,Catégories!$B$3:$D$7,3,FALSE),\"Attention\",\"OK\"),\"\")","v":""}]
[null,null,null,null,null,null,null,null,null,null,null,{"$f":"IFERROR(VLOOKUP(K18,Catégories!$B$3:$D$7,2,FALSE),\"\")","v":""},null,null,null,null,null,null,"0h00min00s",null,{"$f":"IFERROR(IF(T18>VLOOKUP(K18,Catégories!$B$3:$D$7,3,FALSE),\"Attention\",\"OK\"),\"\")","v":""}]
[null,null,null,null,null,null,null,null,null,null,null,{"$f":"IFERROR(VLOOKUP(K19,Catégories!$B$3:$D$7,2,FALSE),\"\")","v":""},null,null,null,null,null,null,"0h00min00s",null,{"$f":"IFERROR(IF(T19>VLOOKUP(K19,Catégories!$B$3:$D$7,3,FALSE),\"Attention\",\"OK\"),\"\")","v":""}]
[null,null,null,null,null,null,null,null,null,null,null,{"$f":"IFERROR(VLOOKUP(K20,Catégories!$B$3:$D$7,2,FALSE),\"\")","v":""},null,null,null,null,null,null,"0h00min00s",null,{"$f":"IFERROR(IF(T20>VLOOKUP(K20,Catégories!$B$3:$D$7,3,FALSE),\"Attention\",\"OK\"),\"\")","v":""}]
[null,null,null,null,null,null,null,null,null,null,null,{"$f":"IFERROR(VLOOKUP(K21,Catégories!$B$3:$D$7,2,FALSE),\"\")","v":""},null,null,null,null,null,null,"0h00min00s",null,{"$f":"IFERROR(IF(T21>VLOOKUP(K21,Catégories!$B$3:$D$7,3,FALSE),\"Attention\",\"OK\"),\"\")","v":""}]
[null,null,null,null,null,null,null,null,null,null,null,{"$f":"IFERROR(VLOOKUP(K22,Catégories!$B$3:$D$7,2,FALSE),\"\")","v":""},null,null,null,null,null,null,"0h00min00s",null,{"$f":"IFERROR(IF(T22>VLOOKUP(K22,Catégories!$B$3:$D$7,3,FALSE),\"Attention\",\"OK\"),\"\")","v":""}]
[null,null,null,null,null,null,null,null,null,null,null,{"$f":"IFERROR(VLOOKUP(K23,Catégories!$B$3:$D$7,2,FALSE),\"\")","v":""},null,null,null,null,null,null,"0h00min00s",null,{"$f":"IFERROR(IF(T23>VLOOKUP(K23,Catégories!$B$3:$D$7,3,FALSE),\"Attention\",\"OK\"),\"\")","v":""}]
[null,null,null,null,null,null,null,null,null,null,null,{"$f":"IFERROR(VLOOKUP(K24,Catégories!$B$3:$D$7,2,FALSE),\"\")","v":""},null,null,null,null,null,null,"0h00min00s",null,{"$f":"IFERROR(IF(T24>VLOOKUP(K24,Catégories!$B$3:$D$7,3,FALSE),\"Attention\",\"OK\"),\"\")","v":""}]
[null,null,null,null,null,null,null,null,null,null,null,{"$f":"IFERROR(VLOOKUP(K25,Catégories!$B$3:$D$7,2,FALSE),\"\")","v":""},null,null,null,null,null,null,"0h00min00s",null,{"$f":"IFERROR(IF(T25>VLOOKUP(K25,Catégories!$B$3:$D$7,3,FALSE),\"Attention\",\"OK\"),\"\")","v":""}]
[null,null,null,null,null,null,null,null,null,null,null,{"$f":"IFERROR(VLOOKUP(K26,Catégories!$B$3:$D$7,2,FALSE),\"\")","v":""},null,null,null,null,null,null,"0h00min00s",null,{"$f":"IFERROR(IF(T26>VLOOKUP(K26,Catégories!$B$3:$D$7,3,FALSE),\"Attention\",\"OK\"),\"\")","v":""}]
[null,null,null,null,null,null,null,null,null,null,null,{"$f":"IFERROR(VLOOKUP(K27,Catégories!$B$3:$D$7,2,FALSE),\"\")","v":""},null,null,null,null,null,null,"0h00min00s",null,{"$f":"IFERROR(IF(T27>VLOOKUP(K27,Catégories!$B$3:$D$7,3,FALSE),\"Attention\",\"OK\"),\"\")","v":""}]
[null,null,null,null,null,null,null,null,null,null,null,{"$f":"IFERROR(VLOOKUP(K28,Catégories!$B$3:$D$7,2,FALSE),\"\")","v":""},null,null,null,null,null,null,"0h00min00s",null,{"$f":"IFERROR(IF(T28>VLOOKUP(K28,Catégories!$B$3:$D$7,3,FALSE),\"Attention\",\"OK\"),\"\")","v":""}]
[null,null,null,null,null,null,null,null,null,null,null,{"$f":"IFERROR(VLOOKUP(K29,Catégories!$B$3:$D$7,2,FALSE),\"\")","v":""},null,null,null,null,null,null,"0h00min00s",null,{"$f":"IFERROR(IF(T29>VLOOKUP(K29,Catégories!$B$3:$D$7,3,FALSE),\"Attention\",\"OK\"),\"\")","v":""}]
[null,null,null,null,null,null,null,null,null,null,null,{"$f":"IFERROR(VLOOKUP(K30,Catégories!$B$3:$D$7,2,FALSE),\"\")","v":""},null,null,null,null,null,null,"0h00min00s",null,{"$f":"IFERROR(IF(T30>VLOOKUP(K30,Catégories!$B$3:$D$7,3,FALSE),\"Attention\",\"OK\"),\"\")","v":""}]
[null,null,null,null,null,null,null,null,null,null,null,{"$f":"IFERROR(VLOOKUP(K31,Catégories!$B$3:$D$7,2,FALSE),\"\")","v":""},null,null,null,null,null,null,"0h00min00s",null,{"$f":"IFERROR(IF(T31>VLOOKUP(K31,Catégories!$B$3:$D$7,3,FALSE),\"Attention\",\"OK\"),\"\")","v":""}]
[null,null,null,null,null,null,null,null,null,null,null,{"$f":"IFERROR(VLOOKUP(K32,Catégories!$B$3:$D$7,2,FALSE),\"\")","v":""},null,null,null,null,null,null,"0h00min00s",null,{"$f":"IFERROR(IF(T32>VLOOKUP(K32,Catégories!$B$3:$D$7,3,FALSE),\"Attention\",\"OK\"),\"\")","v":""}]
[null,null,null,null,null,null,null,null,null,null,null,{"$f":"IFERROR(VLOOKUP(K33,Catégories!$B$3:$D$7,2,FALSE),\"\")","v":""},null,null,null,null,null,null,"0h00min00s",null,{"$f":"IFERROR(IF(T33>VLOOKUP(K33,Catégories!$B$3:$D$7,3,FALSE),\"Attention\",\"OK\"),\"\")","v":""}]
[null,null,null,null,null,null,null,null,null,null,null,{"$f":"IFERROR(VLOOKUP(K34,Catégories!$B$3:$D$7,2,FALSE),\"\")","v":""},null,null,null,null,null,null,"0h00min00s",null,{"$f":"IFERROR(IF(T34>VLOOKUP(K34,Catégories!$B$3:$D$7,3,FALSE),\"Attention\",\"OK\"),\"\")","v":""}]
[null,null,null,null,null,null,null,null,null,null,null,{"$f":"IFERROR(VLOOKUP(K35,Catégories!$B$3:$D$7,2,FALSE),\"\")","v":""},null,null,null,null,null,null,"0h00min00s",null,{"$f":"IFERROR(IF(T35>VLOOKUP(K35,Catégories!$B$3:$D$7,3,FALSE),\"Attention\",\"OK\"),\"\")","v":""}]
[null,null,null,null,null,null,null,null,null,null,null,{"$f":"IFERROR(VLOOKUP(K36,Catégories!$B$3:$D$7,2,FALSE),\"\")","v":""},null,null,null,null,null,null,"0h00min00s",null,{"$f":"IFERROR(IF(T36>VLOOKUP(K36,Catégories!$B$3:$D$7,3,FALSE),\"Attention\",\"OK\"),\"\")","v":""}]
[null,null,null,null,null,null,null,null,null,null,null,{"$f":"IFERROR(VLOOKUP(K37,Catégories!$B$3:$D$7,2,FALSE),\"\")","v":""},null,null,null,null,null,null,"0h00min00s",null,{"$f":"IFERROR(IF(T37>VLOOKUP(K37,Catégories!$B$3:$D$7,3,FALSE),\"Attention\",\"OK\"),\"\")","v":""}]
[null,null,null,null,null,null,null,null,null,null,null,{"$f":"IFERROR(VLOOKUP(K38,Catégories!$B$3:$D$7,2,FALSE),\"\")","v":""},null,null,null,null,null,null,"0h00min00s",null,{"$f":"IFERROR(IF(T38>VLOOKUP(K38,Catégories!$B$3:$D$7,3,FALSE),\"Attention\",\"OK\"),\"\")","v":""}]
[null,null,null,null,null,null,null,null,null,null,null,{"$f":"IFERROR(VLOOKUP(K39,Catégories!$B$3:$D$7,2,FALSE),\"\")","v":""},null,null,null,null,null,null,"0h00min00s",null,{"$f":"IFERROR(IF(T39>VLOOKUP(K39,Catégories!$B$3:$D$7,3,FALSE),\"Attention\",\"OK\"),\"\")","v":""}]
[null,null,null,null,null,null,null,null,null,null,null,{"$f":"IFERROR(VLOOKUP(K40,Catégories!$B$3:$D$7,2,FALSE),\"\")","v":""},null,null,null,null,null,null,"0h00min00s",null,{"$f":"IFERROR(IF(T40>VLOOKUP(K40,Catégories!$B$3:$D$7,3,FALSE),\"Attention\",\"OK\"),\"\")","v":""}]
[null,null,null,null,null,null,null,null,null,null,null,{"$f":"IFERROR(VLOOKUP(K41,Catégories!$B$3:$D$7,2,FALSE),\"\")","v":""},null,null,null,null,null,null,"0h00min00s",null,{"$f":"IFERROR(IF(T41>VLOOKUP(K41,Catégories!$B$3:$D$7,3,FALSE),\"Attention\",\"OK\"),\"\")","v":""}]
[null,null,null,null,null,null,null,null,null,null,null,{"$f":"IFERROR(VLOOKUP(K42,Catégories!$B$3:$D$7,2,FALSE),\"\")","v":""},null,null,null,null,null,null,"0h00min00s",null,{"$f":"IFERROR(IF(T42>VLOOKUP(K42,Catégories!$B$3:$D$7,3,FALSE),\"Attention\",\"OK\"),\"\")","v":""}]
[null,null,null,null,null,null,null,null,null,null,null,{"$f":"IFERROR(VLOOKUP(K43,Catégories!$B$3:$D$7,2,FALSE),\"\")","v":""},null,null,null,null,null,null,"0h00min00s",null,{"$f":"IFERROR(IF(T43>VLOOKUP(K43,Catégories!$B$3:$D$7,3,FALSE),\"Attention\",\"OK\"),\"\")","v":""}]
[null,null,null,null,null,null,null,null,null,null,null,{"$f":"IFERROR(VLOOKUP(K44,Catégories!$B$3:$D$7,2,FALSE),\"\")","v":""},null,null,null,null,null,null,"0h00min00s",null,{"$f":"IFERROR(IF(T44>VLOOKUP(K44,Catégories!$B$3:$D$7,3,FALSE),\"Attention\",\"OK\"),\"\")","v":""}]
[null,null,null,null,null,null,null,null,null,null,null,{"$f":"IFERROR(VLOOKUP(K45,Catégories!$B$3:$D$7,2,FALSE),\"\")","v":""},null,null,null,null,null,null,"0h00min00s",null,{"$f":"IFERROR(IF(T45>VLOOKUP(K45,Catégories!$B$3:$D$7,3,FALSE),\"Attention\",\"OK\"),\"\")","v":""}]
[null,null,null,null,null,null,null,null,null,null,null,{"$f":"IFERROR(VLOOKUP(K46,Catégories!$B$3:$D$7,2,FALSE),\"\")","v":""},null,null,null,null,null,null,"0h00min00s",null,{"$f":"IFERROR(IF(T46>VLOOKUP(K46,Catégories!$B$3:$D$7,3,FALSE),\"Attention\",\"OK\"),\"\")","v":""}]
[null,null,null,null,null,null,null,null,null,null,null,{"$f":"IFERROR(VLOOKUP(K47,Catégories!$B$3:$D$7,2,FALSE),\"\")","v":""},null,null,null,null,null,null,"0h00min00s",null,{"$f":"IFERROR(IF(T47>VLOOKUP(K47,Catégories!$B$3:$D$7,3,FALSE),\"Attention\",\"OK\"),\"\")","v":""}]
[null,null,null,null,null,null,null,null,null,null,null,{"$f":"IFERROR(VLOOKUP(K48,Catégories!$B$3:$D$7,2,FALSE),\"\")","v":""},null,null,null,null,null,null,"0h00min00s",null,{"$f":"IFERROR(IF(T48>VLOOKUP(K48,Catégories!$B$3:$D$7,3,FALSE),\"Attention\",\"OK\"),\"\")","v":""}]
[null,null,null,null,null,null,null,null,null,null,null,{"$f":"IFERROR(VLOOKUP(K49,Catégories!$B$3:$D$7,2,FALSE),\"\")","v":""},null,null,null,null,null,null,"0h00min00s",null,{"$f":"IFERROR(IF(T49>VLOOKUP(K49,Catégories!$B$3:$D$7,3,FALSE),\"Attention\",\"OK\"),\"\")","v":""}]
[null,null,null,null,null,null,null,null,null,null,null,{"$f":"IFERROR(VLOOKUP(K50,Catégories!$B$3:$D$7,2,FALSE),\"\")","v":""},null,null,null,null,null,null,"0h00min00s",null,{"$f":"IFERROR(IF(T50>VLOOKUP(K50,Catégories!$B$3:$D$7,3,FALSE),\"Attention\",\"OK\"),\"\")","v":""}]
[null,null,null,null,null,null,null,null,null,null,null,{"$f":"IFERROR(VLOOKUP(K51,Catégories!$B$3:$D$7,2,FALSE),\"\")","v":""},null,null,null,null,null,null,"0h00min00s",null,{"$f":"IFERROR(IF(T51>VLOOKUP(K51,Catégories!$B$3:$D$7,3,FALSE),\"Attention\",\"OK\"),\"\")","v":""}]
[null,null,null,null,null,null,null,null,null,null,null,{"$f":"IFERROR(VLOOKUP(K52,Catégories!$B$3:$D$7,2,FALSE),\"\")","v":""},null,null,null,null,null,null,"0h00min00s",null,{"$f":"IFERROR(IF(T52>VLOOKUP(K52,Catégories!$B$3:$D$7,3,FALSE),\"Attention\",\"OK\"),\"\")","v":""}]
[null,null,null,null,null,null,null,null,null,null,null,{"$f":"IFERROR(VLOOKUP(K53,Catégories!$B$3:$D$7,2,FALSE),\"\")","v":""},null,null,null,null,null,null,"0h00min00s",null,{"$f":"IFERROR(IF(T53>VLOOKUP(K53,Catégories!$B$3:$D$7,3,FALSE),\"Attention\",\"OK\"),\"\")","v":""}]
[null,null,null,null,null,null,null,null,null,null,null,{"$f":"IFERROR(VLOOKUP(K54,Catégories!$B$3:$D$7,2,FALSE),\"\")","v":""},null,null,null,null,null,null,"0h00min00s",null,{"$f":"IFERROR(IF(T54>VLOOKUP(K54,Catégories!$B$3:$D$7,3,FALSE),\"Attention\",\"OK\"),\"\")","v":""}]
[null,null,null,null,null,null,null,null,null,null,null,{"$f":"IFERROR(VLOOKUP(K55,Catégories!$B$3:$D$7,2,FALSE),\"\")","v":""},null,null,null,null,null,null,"0h00min00s",null,{"$f":"IFERROR(IF(T55>VLOOKUP(K55,Catégories!$B$3:$D$7,3,FALSE),\"Attention\",\"OK\"),\"\")","v":""}]
[null,null,null,null,null,null,null,null,null,null,null,{"$f":"IFERROR(VLOOKUP(K56,Catégories!$B$3:$D$7,2,FALSE),\"\")","v":""},null,null,null,null,null,null,"0h00min00s",null,{"$f":"IFERROR(IF(T56>VLOOKUP(K56,Catégories!$B$3:$D$7,3,FALSE),\"Attention\",\"OK\"),\"\")","v":""}]
[null,null,null,null,null,null,null,null,null,null,null,{"$f":"IFERROR(VLOOKUP(K57,Catégories!$B$3:$D$7,2,FALSE),\"\")","v":""},null,null,null,null,null,null,"0h00min00s",null,{"$f":"IFERROR(IF(T57>VLOOKUP(K57,Catégories!$B$3:$D$7,3,FALSE),\"Attention\",\"OK\"),\"\")","v":""}]
[null,null,null,"Fin des données"]

{"sheet":"DEBUTANT","index":6,"n_rows":20,"n_cols":21,"rows_kept":20,"cut":false,"hidden":false,"merged":[[8,3,8,9],[8,10,8,13],[8,14,8,19],[9,10,9,11],[9,12,9,14],[9,15,9,17]]}
[]
[]
[]
[]
[]
[]
[]
[]
[null,null,null,"Course d'Orientation",null,null,null,null,null,null,"CLASSEMENT :",null,null,null,"DEBUTANT"]
[null,null,null,"N°équipe","Nom1","Prénom1","Établissement 1","Nom2","Prénom2","Établissement 2","Catégorie",null,"Tps de départ",null,null,"Tps d'arrivée",null,null,"Tps de parcours","Nb balises","Vérif balise"]
[null,null,null,null,null,null,null,null,null,null,null,{"$f":"IFERROR(VLOOKUP(K11,Catégories!$B$3:$D$7,2,FALSE),\"\")","v":""},null,null,null,null,null,null,{"$f":"transforme_seconde((P11-M11)*3600+(Q11-N11)*60+(R11-O11))","v":"0h00min00s"},null,{"$f":"IFERROR(IF(T11>VLOOKUP(K11,Catégories!$B$3:$D$7,3,FALSE),\"Attention\",\"OK\"),\"\")","v":""}]
[null,null,null,null,null,null,null,null,null,null,null,{"$f":"IFERROR(VLOOKUP(K12,Catégories!$B$3:$D$7,2,FALSE),\"\")","v":""},null,null,null,null,null,null,"0h00min00s",null,{"$f":"IFERROR(IF(T12>VLOOKUP(K12,Catégories!$B$3:$D$7,3,FALSE),\"Attention\",\"OK\"),\"\")","v":""}]
[null,null,null,null,null,null,null,null,null,null,null,{"$f":"IFERROR(VLOOKUP(K13,Catégories!$B$3:$D$7,2,FALSE),\"\")","v":""},null,null,null,null,null,null,"0h00min00s",null,{"$f":"IFERROR(IF(T13>VLOOKUP(K13,Catégories!$B$3:$D$7,3,FALSE),\"Attention\",\"OK\"),\"\")","v":""}]
[null,null,null,null,null,null,null,null,null,null,null,{"$f":"IFERROR(VLOOKUP(K14,Catégories!$B$3:$D$7,2,FALSE),\"\")","v":""},null,null,null,null,null,null,"0h00min00s",null,{"$f":"IFERROR(IF(T14>VLOOKUP(K14,Catégories!$B$3:$D$7,3,FALSE),\"Attention\",\"OK\"),\"\")","v":""}]
[null,null,null,null,null,null,null,null,null,null,null,{"$f":"IFERROR(VLOOKUP(K15,Catégories!$B$3:$D$7,2,FALSE),\"\")","v":""},null,null,null,null,null,null,"0h00min00s",null,{"$f":"IFERROR(IF(T15>VLOOKUP(K15,Catégories!$B$3:$D$7,3,FALSE),\"Attention\",\"OK\"),\"\")","v":""}]
[null,null,null,null,null,null,null,null,null,null,null,{"$f":"IFERROR(VLOOKUP(K16,Catégories!$B$3:$D$7,2,FALSE),\"\")","v":""},null,null,null,null,null,null,"0h00min00s",null,{"$f":"IFERROR(IF(T16>VLOOKUP(K16,Catégories!$B$3:$D$7,3,FALSE),\"Attention\",\"OK\"),\"\")","v":""}]
[null,null,null,null,null,null,null,null,null,null,null,{"$f":"IFERROR(VLOOKUP(K17,Catégories!$B$3:$D$7,2,FALSE),\"\")","v":""},null,null,null,null,null,null,"0h00min00s",null,{"$f":"IFERROR(IF(T17>VLOOKUP(K17,Catégories!$B$3:$D$7,3,FALSE),\"Attention\",\"OK\"),\"\")","v":""}]
[null,null,null,null,null,null,null,null,null,null,null,{"$f":"IFERROR(VLOOKUP(K18,Catégories!$B$3:$D$7,2,FALSE),\"\")","v":""},null,null,null,null,null,null,"0h00min00s",null,{"$f":"IFERROR(IF(T18>VLOOKUP(K18,Catégories!$B$3:$D$7,3,FALSE),\"Attention\",\"OK\"),\"\")","v":""}]
[null,null,null,null,null,null,null,null,null,null,null,{"$f":"IFERROR(VLOOKUP(K19,Catégories!$B$3:$D$7,2,FALSE),\"\")","v":""},null,null,null,null,null,null,"0h00min00s",null,{"$f":"IFERROR(IF(T19>VLOOKUP(K19,Catégories!$B$3:$D$7,3,FALSE),\"Attention\",\"OK\"),\"\")","v":""}]
[null,null,null,"Fin des données"]